Workbook

Sheet coeff
A1: Verson 2018.1
F2: LineCoeff
B3: Kelly | C3: Bank | F3: -35.5 | G3: -3.796276978 | H3: 0.1211363963
A4: h2h | B4: 10 | C4: 10000 | F4: -34.5 | G4: -3.724171699 | H4: 0.1145465481
A5: line | B5: 10 | C5: 10000 | F5: -33.5 | G5: -3.556536629 | H5: 0.1211312525
A6: futures | B6: 25 | C6: 10000 | F6: -32.5 | G6: -3.550309619 | H6: 0.1211187984
A7: totals | B7: 10 | C7: 10000 | F7: -31.5 | G7: -3.268688095 | H7: 0.114373692
F8: -30.5 | G8: -3.255803907 | H8: 0.1137458312
F9: -29.5 | G9: -3.028618687 | H9: 0.111989684
F10: -28.5 | G10: -2.998113193 | H10: 0.1106159775
F11: -27.5 | G11: -2.825312415 | H11: 0.1119196478
F12: -26.5 | G12: -2.798089791 | H12: 0.109629285
F13: -25.5 | G13: -2.583018448 | H13: 0.1064363848
F14: -24.5 | G14: -2.545746532 | H14: 0.105752463
F15: -23.5 | G15: -2.370577843 | H15: 0.1051866248
F16: -22.5 | G16: -2.35551348 | H16: 0.1038293783
F17: -21.5 | G17: -2.170638398 | H17: 0.09900913678
F18: -20.5 | G18: -2.164136562 | H18: 0.09902597681
F19: -19.5 | G19: -1.908470941 | H19: 0.09856321192
F20: -18.5 | G20: -1.865493271 | H20: 0.09820212822
F21: -17.5 | G21: -1.704944248 | H21: 0.09828937191
F22: -16.5 | G22: -1.68059575 | H22: 0.09884817201
F23: -15.5 | G23: -1.514125771 | H23: 0.09462334237
F24: -14.5 | G24: -1.505112322 | H24: 0.0945366623
F25: -13.5 | G25: -1.304260902 | H25: 0.09419604165
F26: -12.5 | G26: -1.255389107 | H26: 0.09215606275
F27: -11.5 | G27: -1.124056417 | H27: 0.08788203399
F28: -10.5 | G28: -1.093719871 | H28: 0.08716269947
F29: -9.5 | G29: -0.9357575701 | H29: 0.08301713405
F30: -8.5 | G30: -0.9154154054 | H30: 0.08216304918
F31: -7.5 | G31: -0.7314557005 | H31: 0.08143679486
F32: -6.5 | G32: -0.66772665 | H32: 0.08035878605
F33: -5.5 | G33: -0.5190039703 | H33: 0.08180356677
F34: -4.5 | G34: -0.5052991924 | H34: 0.08210690839
F35: -3.5 | G35: -0.3194279008 | H35: 0.07892769699
F36: -2.5 | G36: -0.2965705948 | H36: 0.07929403779
F37: -1.5 | G37: -0.1073404716 | H37: 0.07862255025
F38: -0.5 | G38: -0.01129798786 | H38: 0.0790467825
F39: 0.5 | G39: 0.01129798786 | H39: 0.0790467825
F40: 1.5 | G40: 0.1073404716 | H40: 0.07862255025
F41: 2.5 | G41: 0.2965705948 | H41: 0.07929403779
F42: 3.5 | G42: 0.3194279008 | H42: 0.07892769699
F43: 4.5 | G43: 0.5052991924 | H43: 0.08210690839
F44: 5.5 | G44: 0.5190039703 | H44: 0.08180356677
F45: 6.5 | G45: 0.66772665 | H45: 0.08035878605
F46: 7.5 | G46: 0.7314557005 | H46: 0.08143679486
F47: 8.5 | G47: 0.9154154054 | H47: 0.08216304918
F48: 9.5 | G48: 0.9357575701 | H48: 0.08301713405
F49: 10.5 | G49: 1.093719871 | H49: 0.08716269947
F50: 11.5 | G50: 1.124056417 | H50: 0.08788203399
F51: 12.5 | G51: 1.255389107 | H51: 0.09215606275
F52: 13.5 | G52: 1.304260902 | H52: 0.09419604165
F53: 14.5 | G53: 1.505112322 | H53: 0.0945366623
F54: 15.5 | G54: 1.514125771 | H54: 0.09462334237
F55: 16.5 | G55: 1.68059575 | H55: 0.09884817201
F56: 17.5 | G56: 1.704944248 | H56: 0.09828937191
F57: 18.5 | G57: 1.865493271 | H57: 0.09820212822
F58: 19.5 | G58: 1.908470941 | H58: 0.09856321192
F59: 20.5 | G59: 2.164136562 | H59: 0.09902597681
F60: 21.5 | G60: 2.170638398 | H60: 0.09900913678
F61: 22.5 | G61: 2.35551348 | H61: 0.1038293783
F62: 23.5 | G62: 2.370577843 | H62: 0.1051866248
F63: 24.5 | G63: 2.545746532 | H63: 0.105752463
F64: 25.5 | G64: 2.583018448 | H64: 0.1064363848
F65: 26.5 | G65: 2.798089791 | H65: 0.109629285
F66: 27.5 | G66: 2.825312415 | H66: 0.1119196478
F67: 28.5 | G67: 2.998113193 | H67: 0.1106159775
F68: 29.5 | G68: 3.028618687 | H68: 0.111989684
F69: 30.5 | G69: 3.255803907 | H69: 0.1137458312
F70: 31.5 | G70: 3.268688095 | H70: 0.114373692
F71: 32.5 | G71: 3.550309619 | H71: 0.1211187984
F72: 33.5 | G72: 3.556536629 | H72: 0.1211312525
F73: 34.5 | G73: 3.724171699 | H73: 0.1145465481
F74: 35.5 | G74: 3.796276978 | H74: 0.1211363963

Sheet h2h
A3: Team1 | B3: Team2 | C3: PlayerProb | D3: Odds1 | E3: Odds2 | F3: $Bet1 | G3: $Bet2 | H3: Overlay
A4: Penrith | B4: Canterbury | C4: 0.506 | D4: 2.25 | E4: 1.72 | F4: =IF(D4="","",IF((C4*D4-1)>=0.05,coeff!$C$4/coeff!$B$4*(C4*D4-1)/(D4-1),0)) -> 110.8 | G4: =IF(E4="","",IF((E4*(1-C4)-1)>=0.05,coeff!$C$4/coeff!$B$4*(E4*(1-C4)-1)/(E4-1),0)) -> 0 | H4: =IF(C4="","",IF(F4>0,C4*D4-1,IF(G4>0,E4*(1-C4)-1,""))) -> 0.1385
A5: Brisbane | B5: New Zealand | C5: 0.713 | D5: 1.33 | E5: 3.52 | F5: =IF(D5="","",IF((C5*D5-1)>=0.05,coeff!$C$4/coeff!$B$4*(C5*D5-1)/(D5-1),0)) -> 0 | G5: =IF(E5="","",IF((E5*(1-C5)-1)>=0.05,coeff!$C$4/coeff!$B$4*(E5*(1-C5)-1)/(E5-1),0)) -> 0 | H5: =IF(C5="","",IF(F5>0,C5*D5-1,IF(G5>0,E5*(1-C5)-1,""))) -> 
F6: =IF(D6="","",IF((C6*D6-1)>=0.05,coeff!$C$4/coeff!$B$4*(C6*D6-1)/(D6-1),0)) ->  | G6: =IF(E6="","",IF((E6*(1-C6)-1)>=0.05,coeff!$C$4/coeff!$B$4*(E6*(1-C6)-1)/(E6-1),0)) -> 
F7: =IF(D7="","",IF((C7*D7-1)>=0.05,coeff!$C$4/coeff!$B$4*(C7*D7-1)/(D7-1),0)) ->  | G7: =IF(E7="","",IF((E7*(1-C7)-1)>=0.05,coeff!$C$4/coeff!$B$4*(E7*(1-C7)-1)/(E7-1),0)) -> 
F8: =IF(D8="","",IF((C8*D8-1)>=0.05,coeff!$C$4/coeff!$B$4*(C8*D8-1)/(D8-1),0)) ->  | G8: =IF(E8="","",IF((E8*(1-C8)-1)>=0.05,coeff!$C$4/coeff!$B$4*(E8*(1-C8)-1)/(E8-1),0)) -> 
F9: =IF(D9="","",IF((C9*D9-1)>=0.05,coeff!$C$4/coeff!$B$4*(C9*D9-1)/(D9-1),0)) ->  | G9: =IF(E9="","",IF((E9*(1-C9)-1)>=0.05,coeff!$C$4/coeff!$B$4*(E9*(1-C9)-1)/(E9-1),0)) -> 
F10: =IF(D10="","",IF((C10*D10-1)>=0.05,coeff!$C$4/coeff!$B$4*(C10*D10-1)/(D10-1),0)) ->  | G10: =IF(E10="","",IF((E10*(1-C10)-1)>=0.05,coeff!$C$4/coeff!$B$4*(E10*(1-C10)-1)/(E10-1),0)) -> 
F11: =IF(D11="","",IF((C11*D11-1)>=0.05,coeff!$C$4/coeff!$B$4*(C11*D11-1)/(D11-1),0)) ->  | G11: =IF(E11="","",IF((E11*(1-C11)-1)>=0.05,coeff!$C$4/coeff!$B$4*(E11*(1-C11)-1)/(E11-1),0)) -> 
F12: =IF(D12="","",IF((C12*D12-1)>=0.05,coeff!$C$4/coeff!$B$4*(C12*D12-1)/(D12-1),0)) ->  | G12: =IF(E12="","",IF((E12*(1-C12)-1)>=0.05,coeff!$C$4/coeff!$B$4*(E12*(1-C12)-1)/(E12-1),0)) -> 
F13: =IF(D13="","",IF((C13*D13-1)>=0.05,coeff!$C$4/coeff!$B$4*(C13*D13-1)/(D13-1),0)) ->  | G13: =IF(E13="","",IF((E13*(1-C13)-1)>=0.05,coeff!$C$4/coeff!$B$4*(E13*(1-C13)-1)/(E13-1),0)) -> 
F14: =IF(D14="","",IF((C14*D14-1)>=0.05,coeff!$C$4/coeff!$B$4*(C14*D14-1)/(D14-1),0)) ->  | G14: =IF(E14="","",IF((E14*(1-C14)-1)>=0.05,coeff!$C$4/coeff!$B$4*(E14*(1-C14)-1)/(E14-1),0)) -> 

Sheet line
A3: Team1 | B3: Team2 | C3: PlayerProb | D3: Line | E3: Odds1 | F3: Odds2 | G3: LineProb | H3: $Bet1 | I3: $Bet2 | J3: Overlay
A4: Penrith | B4: Canterbury | C4: =IF(h2h!C4="","",h2h!C4) -> 0.506 | D4: 4.5 | E4: 1.77 | F4: 2.11 | G4: =IF(D4="","",IF(ISERROR(VLOOKUP(D4,coeff!$F$3:$H$74,2,FALSE))=FALSE,EXP(VLOOKUP(D4,coeff!$F$3:$H$74,2,FALSE)+VLOOKUP(D4,coeff!$F$3:$H$74,3,FALSE)*(LN(1/(1-C4)-1)/0.089))/(1+EXP(VLOOKUP(D4,coeff!$F$3:$H$74,2,FALSE)+VLOOKUP(D4,coeff!$F$3:$H$74,3,FALSE)*(LN(1/(1-C4)-1)/0.089))),(EXP(VLOOKUP(D4+0.5,coeff!$F$3:$H$74,2,FALSE)+VLOOKUP(D4+0.5,coeff!$F$3:$H$74,3,FALSE)*(LN(1/(1-C4)-1)/0.089))/(1+EXP(VLOOKUP(D4+0.5,coeff!$F$3:$H$74,2,FALSE)+VLOOKUP(D4+0.5,coeff!$F$3:$H$74,3,FALSE)*(LN(1/(1-C4)-1)/0.089)))+EXP(VLOOKUP(D4-0.5,coeff!$F$3:$H$74,2,FALSE)+VLOOKUP(D4-0.5,coeff!$F$3:$H$74,3,FALSE)*(LN(1/(1-C4)-1)/0.089))/(1+EXP(VLOOKUP(D4-0.5,coeff!$F$3:$H$74,2,FALSE)+VLOOKUP(D4-0.5,coeff!$F$3:$H$74,3,FALSE)*(LN(1/(1-C4)-1)/0.089))))/2)) -> 0.628886172 | H4: =IF(D4="","",IF((G4*E4-1)>=0.05,coeff!$C$5/coeff!$B$5*(G4*E4-1)/(E4-1),0)) -> 146.9201615 | I4: =IF(D4="","",IF((F4*(1-G4)-1)>=0.05,coeff!$C$5/coeff!$B$5*(F4*(1-G4)-1)/(F4-1),0)) -> 0 | J4: =IF(C4="","",IF(H4>0,E4*G4-1,IF(I4>0,F4*(1-G4)-1,""))) -> 0.1131285244
A5: Brisbane | B5: New Zealand | C5: =IF(h2h!C5="","",h2h!C5) -> 0.713 | D5: -9.5 | E5: 1.93 | F5: 1.93 | G5: =IF(D5="","",IF(ISERROR(VLOOKUP(D5,coeff!$F$3:$H$74,2,FALSE))=FALSE,EXP(VLOOKUP(D5,coeff!$F$3:$H$74,2,FALSE)+VLOOKUP(D5,coeff!$F$3:$H$74,3,FALSE)*(LN(1/(1-C5)-1)/0.089))/(1+EXP(VLOOKUP(D5,coeff!$F$3:$H$74,2,FALSE)+VLOOKUP(D5,coeff!$F$3:$H$74,3,FALSE)*(LN(1/(1-C5)-1)/0.089))),(EXP(VLOOKUP(D5+0.5,coeff!$F$3:$H$74,2,FALSE)+VLOOKUP(D5+0.5,coeff!$F$3:$H$74,3,FALSE)*(LN(1/(1-C5)-1)/0.089))/(1+EXP(VLOOKUP(D5+0.5,coeff!$F$3:$H$74,2,FALSE)+VLOOKUP(D5+0.5,coeff!$F$3:$H$74,3,FALSE)*(LN(1/(1-C5)-1)/0.089)))+EXP(VLOOKUP(D5-0.5,coeff!$F$3:$H$74,2,FALSE)+VLOOKUP(D5-0.5,coeff!$F$3:$H$74,3,FALSE)*(LN(1/(1-C5)-1)/0.089))/(1+EXP(VLOOKUP(D5-0.5,coeff!$F$3:$H$74,2,FALSE)+VLOOKUP(D5-0.5,coeff!$F$3:$H$74,3,FALSE)*(LN(1/(1-C5)-1)/0.089))))/2)) -> 0.4782808171 | H5: =IF(D5="","",IF((G5*E5-1)>=0.05,coeff!$C$5/coeff!$B$5*(G5*E5-1)/(E5-1),0)) -> 0 | I5: =IF(D5="","",IF((F5*(1-G5)-1)>=0.05,coeff!$C$5/coeff!$B$5*(F5*(1-G5)-1)/(F5-1),0)) -> 0 | J5: =IF(C5="","",IF(H5>0,E5*G5-1,IF(I5>0,F5*(1-G5)-1,""))) -> 
C6: =IF(h2h!C6="","",h2h!C6) ->  | G6: =IF(D6="","",IF(ISERROR(VLOOKUP(D6,coeff!$F$3:$H$74,2,FALSE))=FALSE,EXP(VLOOKUP(D6,coeff!$F$3:$H$74,2,FALSE)+VLOOKUP(D6,coeff!$F$3:$H$74,3,FALSE)*(LN(1/(1-C6)-1)/0.089))/(1+EXP(VLOOKUP(D6,coeff!$F$3:$H$74,2,FALSE)+VLOOKUP(D6,coeff!$F$3:$H$74,3,FALSE)*(LN(1/(1-C6)-1)/0.089))),(EXP(VLOOKUP(D6+0.5,coeff!$F$3:$H$74,2,FALSE)+VLOOKUP(D6+0.5,coeff!$F$3:$H$74,3,FALSE)*(LN(1/(1-C6)-1)/0.089))/(1+EXP(VLOOKUP(D6+0.5,coeff!$F$3:$H$74,2,FALSE)+VLOOKUP(D6+0.5,coeff!$F$3:$H$74,3,FALSE)*(LN(1/(1-C6)-1)/0.089)))+EXP(VLOOKUP(D6-0.5,coeff!$F$3:$H$74,2,FALSE)+VLOOKUP(D6-0.5,coeff!$F$3:$H$74,3,FALSE)*(LN(1/(1-C6)-1)/0.089))/(1+EXP(VLOOKUP(D6-0.5,coeff!$F$3:$H$74,2,FALSE)+VLOOKUP(D6-0.5,coeff!$F$3:$H$74,3,FALSE)*(LN(1/(1-C6)-1)/0.089))))/2)) ->  | H6: =IF(D6="","",IF((G6*E6-1)>=0.05,coeff!$C$5/coeff!$B$5*(G6*E6-1)/(E6-1),0)) ->  | I6: =IF(D6="","",IF((F6*(1-G6)-1)>=0.05,coeff!$C$5/coeff!$B$5*(F6*(1-G6)-1)/(F6-1),0)) -> 
C7: =IF(h2h!C7="","",h2h!C7) ->  | G7: =IF(D7="","",IF(ISERROR(VLOOKUP(D7,coeff!$F$3:$H$74,2,FALSE))=FALSE,EXP(VLOOKUP(D7,coeff!$F$3:$H$74,2,FALSE)+VLOOKUP(D7,coeff!$F$3:$H$74,3,FALSE)*(LN(1/(1-C7)-1)/0.089))/(1+EXP(VLOOKUP(D7,coeff!$F$3:$H$74,2,FALSE)+VLOOKUP(D7,coeff!$F$3:$H$74,3,FALSE)*(LN(1/(1-C7)-1)/0.089))),(EXP(VLOOKUP(D7+0.5,coeff!$F$3:$H$74,2,FALSE)+VLOOKUP(D7+0.5,coeff!$F$3:$H$74,3,FALSE)*(LN(1/(1-C7)-1)/0.089))/(1+EXP(VLOOKUP(D7+0.5,coeff!$F$3:$H$74,2,FALSE)+VLOOKUP(D7+0.5,coeff!$F$3:$H$74,3,FALSE)*(LN(1/(1-C7)-1)/0.089)))+EXP(VLOOKUP(D7-0.5,coeff!$F$3:$H$74,2,FALSE)+VLOOKUP(D7-0.5,coeff!$F$3:$H$74,3,FALSE)*(LN(1/(1-C7)-1)/0.089))/(1+EXP(VLOOKUP(D7-0.5,coeff!$F$3:$H$74,2,FALSE)+VLOOKUP(D7-0.5,coeff!$F$3:$H$74,3,FALSE)*(LN(1/(1-C7)-1)/0.089))))/2)) ->  | H7: =IF(D7="","",IF((G7*E7-1)>=0.05,coeff!$C$5/coeff!$B$5*(G7*E7-1)/(E7-1),0)) ->  | I7: =IF(D7="","",IF((F7*(1-G7)-1)>=0.05,coeff!$C$5/coeff!$B$5*(F7*(1-G7)-1)/(F7-1),0)) -> 
C8: =IF(h2h!C8="","",h2h!C8) ->  | G8: =IF(D8="","",IF(ISERROR(VLOOKUP(D8,coeff!$F$3:$H$74,2,FALSE))=FALSE,EXP(VLOOKUP(D8,coeff!$F$3:$H$74,2,FALSE)+VLOOKUP(D8,coeff!$F$3:$H$74,3,FALSE)*(LN(1/(1-C8)-1)/0.089))/(1+EXP(VLOOKUP(D8,coeff!$F$3:$H$74,2,FALSE)+VLOOKUP(D8,coeff!$F$3:$H$74,3,FALSE)*(LN(1/(1-C8)-1)/0.089))),(EXP(VLOOKUP(D8+0.5,coeff!$F$3:$H$74,2,FALSE)+VLOOKUP(D8+0.5,coeff!$F$3:$H$74,3,FALSE)*(LN(1/(1-C8)-1)/0.089))/(1+EXP(VLOOKUP(D8+0.5,coeff!$F$3:$H$74,2,FALSE)+VLOOKUP(D8+0.5,coeff!$F$3:$H$74,3,FALSE)*(LN(1/(1-C8)-1)/0.089)))+EXP(VLOOKUP(D8-0.5,coeff!$F$3:$H$74,2,FALSE)+VLOOKUP(D8-0.5,coeff!$F$3:$H$74,3,FALSE)*(LN(1/(1-C8)-1)/0.089))/(1+EXP(VLOOKUP(D8-0.5,coeff!$F$3:$H$74,2,FALSE)+VLOOKUP(D8-0.5,coeff!$F$3:$H$74,3,FALSE)*(LN(1/(1-C8)-1)/0.089))))/2)) ->  | H8: =IF(D8="","",IF((G8*E8-1)>=0.05,coeff!$C$5/coeff!$B$5*(G8*E8-1)/(E8-1),0)) ->  | I8: =IF(D8="","",IF((F8*(1-G8)-1)>=0.05,coeff!$C$5/coeff!$B$5*(F8*(1-G8)-1)/(F8-1),0)) -> 
C9: =IF(h2h!C9="","",h2h!C9) ->  | G9: =IF(D9="","",IF(ISERROR(VLOOKUP(D9,coeff!$F$3:$H$74,2,FALSE))=FALSE,EXP(VLOOKUP(D9,coeff!$F$3:$H$74,2,FALSE)+VLOOKUP(D9,coeff!$F$3:$H$74,3,FALSE)*(LN(1/(1-C9)-1)/0.089))/(1+EXP(VLOOKUP(D9,coeff!$F$3:$H$74,2,FALSE)+VLOOKUP(D9,coeff!$F$3:$H$74,3,FALSE)*(LN(1/(1-C9)-1)/0.089))),(EXP(VLOOKUP(D9+0.5,coeff!$F$3:$H$74,2,FALSE)+VLOOKUP(D9+0.5,coeff!$F$3:$H$74,3,FALSE)*(LN(1/(1-C9)-1)/0.089))/(1+EXP(VLOOKUP(D9+0.5,coeff!$F$3:$H$74,2,FALSE)+VLOOKUP(D9+0.5,coeff!$F$3:$H$74,3,FALSE)*(LN(1/(1-C9)-1)/0.089)))+EXP(VLOOKUP(D9-0.5,coeff!$F$3:$H$74,2,FALSE)+VLOOKUP(D9-0.5,coeff!$F$3:$H$74,3,FALSE)*(LN(1/(1-C9)-1)/0.089))/(1+EXP(VLOOKUP(D9-0.5,coeff!$F$3:$H$74,2,FALSE)+VLOOKUP(D9-0.5,coeff!$F$3:$H$74,3,FALSE)*(LN(1/(1-C9)-1)/0.089))))/2)) ->  | H9: =IF(D9="","",IF((G9*E9-1)>=0.05,coeff!$C$5/coeff!$B$5*(G9*E9-1)/(E9-1),0)) ->  | I9: =IF(D9="","",IF((F9*(1-G9)-1)>=0.05,coeff!$C$5/coeff!$B$5*(F9*(1-G9)-1)/(F9-1),0)) -> 
C10: =IF(h2h!C10="","",h2h!C10) ->  | G10: =IF(D10="","",IF(ISERROR(VLOOKUP(D10,coeff!$F$3:$H$74,2,FALSE))=FALSE,EXP(VLOOKUP(D10,coeff!$F$3:$H$74,2,FALSE)+VLOOKUP(D10,coeff!$F$3:$H$74,3,FALSE)*(LN(1/(1-C10)-1)/0.089))/(1+EXP(VLOOKUP(D10,coeff!$F$3:$H$74,2,FALSE)+VLOOKUP(D10,coeff!$F$3:$H$74,3,FALSE)*(LN(1/(1-C10)-1)/0.089))),(EXP(VLOOKUP(D10+0.5,coeff!$F$3:$H$74,2,FALSE)+VLOOKUP(D10+0.5,coeff!$F$3:$H$74,3,FALSE)*(LN(1/(1-C10)-1)/0.089))/(1+EXP(VLOOKUP(D10+0.5,coeff!$F$3:$H$74,2,FALSE)+VLOOKUP(D10+0.5,coeff!$F$3:$H$74,3,FALSE)*(LN(1/(1-C10)-1)/0.089)))+EXP(VLOOKUP(D10-0.5,coeff!$F$3:$H$74,2,FALSE)+VLOOKUP(D10-0.5,coeff!$F$3:$H$74,3,FALSE)*(LN(1/(1-C10)-1)/0.089))/(1+EXP(VLOOKUP(D10-0.5,coeff!$F$3:$H$74,2,FALSE)+VLOOKUP(D10-0.5,coeff!$F$3:$H$74,3,FALSE)*(LN(1/(1-C10)-1)/0.089))))/2)) ->  | H10: =IF(D10="","",IF((G10*E10-1)>=0.05,coeff!$C$5/coeff!$B$5*(G10*E10-1)/(E10-1),0)) ->  | I10: =IF(D10="","",IF((F10*(1-G10)-1)>=0.05,coeff!$C$5/coeff!$B$5*(F10*(1-G10)-1)/(F10-1),0)) -> 
C11: =IF(h2h!C11="","",h2h!C11) ->  | G11: =IF(D11="","",IF(ISERROR(VLOOKUP(D11,coeff!$F$3:$H$74,2,FALSE))=FALSE,EXP(VLOOKUP(D11,coeff!$F$3:$H$74,2,FALSE)+VLOOKUP(D11,coeff!$F$3:$H$74,3,FALSE)*(LN(1/(1-C11)-1)/0.089))/(1+EXP(VLOOKUP(D11,coeff!$F$3:$H$74,2,FALSE)+VLOOKUP(D11,coeff!$F$3:$H$74,3,FALSE)*(LN(1/(1-C11)-1)/0.089))),(EXP(VLOOKUP(D11+0.5,coeff!$F$3:$H$74,2,FALSE)+VLOOKUP(D11+0.5,coeff!$F$3:$H$74,3,FALSE)*(LN(1/(1-C11)-1)/0.089))/(1+EXP(VLOOKUP(D11+0.5,coeff!$F$3:$H$74,2,FALSE)+VLOOKUP(D11+0.5,coeff!$F$3:$H$74,3,FALSE)*(LN(1/(1-C11)-1)/0.089)))+EXP(VLOOKUP(D11-0.5,coeff!$F$3:$H$74,2,FALSE)+VLOOKUP(D11-0.5,coeff!$F$3:$H$74,3,FALSE)*(LN(1/(1-C11)-1)/0.089))/(1+EXP(VLOOKUP(D11-0.5,coeff!$F$3:$H$74,2,FALSE)+VLOOKUP(D11-0.5,coeff!$F$3:$H$74,3,FALSE)*(LN(1/(1-C11)-1)/0.089))))/2)) ->  | H11: =IF(D11="","",IF((G11*E11-1)>=0.05,coeff!$C$5/coeff!$B$5*(G11*E11-1)/(E11-1),0)) ->  | I11: =IF(D11="","",IF((F11*(1-G11)-1)>=0.05,coeff!$C$5/coeff!$B$5*(F11*(1-G11)-1)/(F11-1),0)) -> 
C12: =IF(h2h!C13="","",h2h!C13) ->  | G12: =IF(D12="","",IF(ISERROR(VLOOKUP(D12,coeff!$F$3:$H$74,2,FALSE))=FALSE,EXP(VLOOKUP(D12,coeff!$F$3:$H$74,2,FALSE)+VLOOKUP(D12,coeff!$F$3:$H$74,3,FALSE)*(LN(1/(1-C12)-1)/0.089))/(1+EXP(VLOOKUP(D12,coeff!$F$3:$H$74,2,FALSE)+VLOOKUP(D12,coeff!$F$3:$H$74,3,FALSE)*(LN(1/(1-C12)-1)/0.089))),(EXP(VLOOKUP(D12+0.5,coeff!$F$3:$H$74,2,FALSE)+VLOOKUP(D12+0.5,coeff!$F$3:$H$74,3,FALSE)*(LN(1/(1-C12)-1)/0.089))/(1+EXP(VLOOKUP(D12+0.5,coeff!$F$3:$H$74,2,FALSE)+VLOOKUP(D12+0.5,coeff!$F$3:$H$74,3,FALSE)*(LN(1/(1-C12)-1)/0.089)))+EXP(VLOOKUP(D12-0.5,coeff!$F$3:$H$74,2,FALSE)+VLOOKUP(D12-0.5,coeff!$F$3:$H$74,3,FALSE)*(LN(1/(1-C12)-1)/0.089))/(1+EXP(VLOOKUP(D12-0.5,coeff!$F$3:$H$74,2,FALSE)+VLOOKUP(D12-0.5,coeff!$F$3:$H$74,3,FALSE)*(LN(1/(1-C12)-1)/0.089))))/2)) ->  | H12: =IF(D12="","",IF((G12*E12-1)>=0.05,coeff!$C$5/coeff!$B$5*(G12*E12-1)/(E12-1),0)) ->  | I12: =IF(D12="","",IF((F12*(1-G12)-1)>=0.05,coeff!$C$5/coeff!$B$5*(F12*(1-G12)-1)/(F12-1),0)) -> 
C13: =IF(h2h!C14="","",h2h!C14) ->  | G13: =IF(D13="","",IF(ISERROR(VLOOKUP(D13,coeff!$F$3:$H$74,2,FALSE))=FALSE,EXP(VLOOKUP(D13,coeff!$F$3:$H$74,2,FALSE)+VLOOKUP(D13,coeff!$F$3:$H$74,3,FALSE)*(LN(1/(1-C13)-1)/0.089))/(1+EXP(VLOOKUP(D13,coeff!$F$3:$H$74,2,FALSE)+VLOOKUP(D13,coeff!$F$3:$H$74,3,FALSE)*(LN(1/(1-C13)-1)/0.089))),(EXP(VLOOKUP(D13+0.5,coeff!$F$3:$H$74,2,FALSE)+VLOOKUP(D13+0.5,coeff!$F$3:$H$74,3,FALSE)*(LN(1/(1-C13)-1)/0.089))/(1+EXP(VLOOKUP(D13+0.5,coeff!$F$3:$H$74,2,FALSE)+VLOOKUP(D13+0.5,coeff!$F$3:$H$74,3,FALSE)*(LN(1/(1-C13)-1)/0.089)))+EXP(VLOOKUP(D13-0.5,coeff!$F$3:$H$74,2,FALSE)+VLOOKUP(D13-0.5,coeff!$F$3:$H$74,3,FALSE)*(LN(1/(1-C13)-1)/0.089))/(1+EXP(VLOOKUP(D13-0.5,coeff!$F$3:$H$74,2,FALSE)+VLOOKUP(D13-0.5,coeff!$F$3:$H$74,3,FALSE)*(LN(1/(1-C13)-1)/0.089))))/2)) ->  | H13: =IF(D13="","",IF((G13*E13-1)>=0.05,coeff!$C$5/coeff!$B$5*(G13*E13-1)/(E13-1),0)) ->  | I13: =IF(D13="","",IF((F13*(1-G13)-1)>=0.05,coeff!$C$5/coeff!$B$5*(F13*(1-G13)-1)/(F13-1),0)) -> 
C14: =IF(h2h!C15="","",h2h!C15) ->  | G14: =IF(D14="","",IF(ISERROR(VLOOKUP(D14,coeff!$F$3:$H$74,2,FALSE))=FALSE,EXP(VLOOKUP(D14,coeff!$F$3:$H$74,2,FALSE)+VLOOKUP(D14,coeff!$F$3:$H$74,3,FALSE)*(LN(1/(1-C14)-1)/0.089))/(1+EXP(VLOOKUP(D14,coeff!$F$3:$H$74,2,FALSE)+VLOOKUP(D14,coeff!$F$3:$H$74,3,FALSE)*(LN(1/(1-C14)-1)/0.089))),(EXP(VLOOKUP(D14+0.5,coeff!$F$3:$H$74,2,FALSE)+VLOOKUP(D14+0.5,coeff!$F$3:$H$74,3,FALSE)*(LN(1/(1-C14)-1)/0.089))/(1+EXP(VLOOKUP(D14+0.5,coeff!$F$3:$H$74,2,FALSE)+VLOOKUP(D14+0.5,coeff!$F$3:$H$74,3,FALSE)*(LN(1/(1-C14)-1)/0.089)))+EXP(VLOOKUP(D14-0.5,coeff!$F$3:$H$74,2,FALSE)+VLOOKUP(D14-0.5,coeff!$F$3:$H$74,3,FALSE)*(LN(1/(1-C14)-1)/0.089))/(1+EXP(VLOOKUP(D14-0.5,coeff!$F$3:$H$74,2,FALSE)+VLOOKUP(D14-0.5,coeff!$F$3:$H$74,3,FALSE)*(LN(1/(1-C14)-1)/0.089))))/2)) ->  | H14: =IF(D14="","",IF((G14*E14-1)>=0.05,coeff!$C$5/coeff!$B$5*(G14*E14-1)/(E14-1),0)) ->  | I14: =IF(D14="","",IF((F14*(1-G14)-1)>=0.05,coeff!$C$5/coeff!$B$5*(F14*(1-G14)-1)/(F14-1),0)) -> 
C15: =IF(h2h!C16="","",h2h!C16) ->  | G15: =IF(D15="","",IF(ISERROR(VLOOKUP(D15,coeff!$F$3:$H$74,2,FALSE))=FALSE,EXP(VLOOKUP(D15,coeff!$F$3:$H$74,2,FALSE)+VLOOKUP(D15,coeff!$F$3:$H$74,3,FALSE)*(LN(1/(1-C15)-1)/0.089))/(1+EXP(VLOOKUP(D15,coeff!$F$3:$H$74,2,FALSE)+VLOOKUP(D15,coeff!$F$3:$H$74,3,FALSE)*(LN(1/(1-C15)-1)/0.089))),(EXP(VLOOKUP(D15+0.5,coeff!$F$3:$H$74,2,FALSE)+VLOOKUP(D15+0.5,coeff!$F$3:$H$74,3,FALSE)*(LN(1/(1-C15)-1)/0.089))/(1+EXP(VLOOKUP(D15+0.5,coeff!$F$3:$H$74,2,FALSE)+VLOOKUP(D15+0.5,coeff!$F$3:$H$74,3,FALSE)*(LN(1/(1-C15)-1)/0.089)))+EXP(VLOOKUP(D15-0.5,coeff!$F$3:$H$74,2,FALSE)+VLOOKUP(D15-0.5,coeff!$F$3:$H$74,3,FALSE)*(LN(1/(1-C15)-1)/0.089))/(1+EXP(VLOOKUP(D15-0.5,coeff!$F$3:$H$74,2,FALSE)+VLOOKUP(D15-0.5,coeff!$F$3:$H$74,3,FALSE)*(LN(1/(1-C15)-1)/0.089))))/2)) ->  | H15: =IF(D15="","",IF((G15*E15-1)>=0.05,coeff!$C$5/coeff!$B$5*(G15*E15-1)/(E15-1),0)) ->  | I15: =IF(D15="","",IF((F15*(1-G15)-1)>=0.05,coeff!$C$5/coeff!$B$5*(F15*(1-G15)-1)/(F15-1),0)) -> 
C16: =IF(h2h!C17="","",h2h!C17) ->  | G16: =IF(D16="","",IF(ISERROR(VLOOKUP(D16,coeff!$F$3:$H$74,2,FALSE))=FALSE,EXP(VLOOKUP(D16,coeff!$F$3:$H$74,2,FALSE)+VLOOKUP(D16,coeff!$F$3:$H$74,3,FALSE)*(LN(1/(1-C16)-1)/0.089))/(1+EXP(VLOOKUP(D16,coeff!$F$3:$H$74,2,FALSE)+VLOOKUP(D16,coeff!$F$3:$H$74,3,FALSE)*(LN(1/(1-C16)-1)/0.089))),(EXP(VLOOKUP(D16+0.5,coeff!$F$3:$H$74,2,FALSE)+VLOOKUP(D16+0.5,coeff!$F$3:$H$74,3,FALSE)*(LN(1/(1-C16)-1)/0.089))/(1+EXP(VLOOKUP(D16+0.5,coeff!$F$3:$H$74,2,FALSE)+VLOOKUP(D16+0.5,coeff!$F$3:$H$74,3,FALSE)*(LN(1/(1-C16)-1)/0.089)))+EXP(VLOOKUP(D16-0.5,coeff!$F$3:$H$74,2,FALSE)+VLOOKUP(D16-0.5,coeff!$F$3:$H$74,3,FALSE)*(LN(1/(1-C16)-1)/0.089))/(1+EXP(VLOOKUP(D16-0.5,coeff!$F$3:$H$74,2,FALSE)+VLOOKUP(D16-0.5,coeff!$F$3:$H$74,3,FALSE)*(LN(1/(1-C16)-1)/0.089))))/2)) ->  | H16: =IF(D16="","",IF((G16*E16-1)>=0.05,coeff!$C$5/coeff!$B$5*(G16*E16-1)/(E16-1),0)) ->  | I16: =IF(D16="","",IF((F16*(1-G16)-1)>=0.05,coeff!$C$5/coeff!$B$5*(F16*(1-G16)-1)/(F16-1),0)) -> 
C17: =IF(h2h!C18="","",h2h!C18) ->  | G17: =IF(D17="","",IF(ISERROR(VLOOKUP(D17,coeff!$F$3:$H$74,2,FALSE))=FALSE,EXP(VLOOKUP(D17,coeff!$F$3:$H$74,2,FALSE)+VLOOKUP(D17,coeff!$F$3:$H$74,3,FALSE)*(LN(1/(1-C17)-1)/0.089))/(1+EXP(VLOOKUP(D17,coeff!$F$3:$H$74,2,FALSE)+VLOOKUP(D17,coeff!$F$3:$H$74,3,FALSE)*(LN(1/(1-C17)-1)/0.089))),(EXP(VLOOKUP(D17+0.5,coeff!$F$3:$H$74,2,FALSE)+VLOOKUP(D17+0.5,coeff!$F$3:$H$74,3,FALSE)*(LN(1/(1-C17)-1)/0.089))/(1+EXP(VLOOKUP(D17+0.5,coeff!$F$3:$H$74,2,FALSE)+VLOOKUP(D17+0.5,coeff!$F$3:$H$74,3,FALSE)*(LN(1/(1-C17)-1)/0.089)))+EXP(VLOOKUP(D17-0.5,coeff!$F$3:$H$74,2,FALSE)+VLOOKUP(D17-0.5,coeff!$F$3:$H$74,3,FALSE)*(LN(1/(1-C17)-1)/0.089))/(1+EXP(VLOOKUP(D17-0.5,coeff!$F$3:$H$74,2,FALSE)+VLOOKUP(D17-0.5,coeff!$F$3:$H$74,3,FALSE)*(LN(1/(1-C17)-1)/0.089))))/2)) ->  | H17: =IF(D17="","",IF((G17*E17-1)>=0.05,coeff!$C$5/coeff!$B$5*(G17*E17-1)/(E17-1),0)) ->  | I17: =IF(D17="","",IF((F17*(1-G17)-1)>=0.05,coeff!$C$5/coeff!$B$5*(F17*(1-G17)-1)/(F17-1),0)) ->  | J17: x

Sheet multiple Lines
A2: Team1 | B2: Team2 | C2: PlayerProb | D2: Line | E2: Odds1 | F2: Odds2 | G2: LineProb | H2: $Bet1 | I2: $Bet2 | J2: Exp Profit | K2: Max
A3: =line!A4 -> Penrith | B3: =line!B4 -> Canterbury | C3: =IF(line!C4="","",line!C4) -> 0.506 | D3: 5 | E3: 1.92 | F3: 1.99 | G3: =IF(OR(C3="",D3=""),"",IF(ISERROR(VLOOKUP(D3,coeff!$F$3:$H$74,2,FALSE))=FALSE,EXP(VLOOKUP(D3,coeff!$F$3:$H$74,2,FALSE)+VLOOKUP(D3,coeff!$F$3:$H$74,3,FALSE)*(LN(1/(1-C3)-1)/0.089))/(1+EXP(VLOOKUP(D3,coeff!$F$3:$H$74,2,FALSE)+VLOOKUP(D3,coeff!$F$3:$H$74,3,FALSE)*(LN(1/(1-C3)-1)/0.089))),(EXP(VLOOKUP(D3+0.5,coeff!$F$3:$H$74,2,FALSE)+VLOOKUP(D3+0.5,coeff!$F$3:$H$74,3,FALSE)*(LN(1/(1-C3)-1)/0.089))/(1+EXP(VLOOKUP(D3+0.5,coeff!$F$3:$H$74,2,FALSE)+VLOOKUP(D3+0.5,coeff!$F$3:$H$74,3,FALSE)*(LN(1/(1-C3)-1)/0.089)))+EXP(VLOOKUP(D3-0.5,coeff!$F$3:$H$74,2,FALSE)+VLOOKUP(D3-0.5,coeff!$F$3:$H$74,3,FALSE)*(LN(1/(1-C3)-1)/0.089))/(1+EXP(VLOOKUP(D3-0.5,coeff!$F$3:$H$74,2,FALSE)+VLOOKUP(D3-0.5,coeff!$F$3:$H$74,3,FALSE)*(LN(1/(1-C3)-1)/0.089))))/2)) -> 0.6304730829 | H3: =IF(OR(C3="",D3=""),"",IF(AND((G3*E3-1)>=0.05,K3=1),coeff!$C$5/coeff!$B$5*(G3*E3-1)/(E3-1),0)) -> 0 | I3: =IF(OR(C3="",D3=""),"",IF(AND((F3*(1-G3)-1)>=0.05,K3=1),coeff!$C$5/coeff!$B$5*(F3*(1-G3)-1)/(F3-1),0)) -> 0 | J3: =IF(OR(C3="",D3=""),"",IF((G3*E3-1)>0,1000*(G3*E3-1)/(E3-1)*G3*(E3-1)-(1-G3)*1000*(G3*E3-1)/(E3-1),IF(((1-G3)*F3-1)>0,1000*((1-G3)*F3-1)/(F3-1)*(1-G3)*(F3-1)-G3*1000*((1-G3)*F3-1)/(F3-1),0))) -> 48.16712218 | K3: =IF(J3=MAX($J$3:$J$8),1,0) -> 0
C4: =C3 -> 0.506 | D4: 5.5 | E4: 1.89 | F4: 2.1 | G4: =IF(OR(C4="",D4=""),"",IF(ISERROR(VLOOKUP(D4,coeff!$F$3:$H$74,2,FALSE))=FALSE,EXP(VLOOKUP(D4,coeff!$F$3:$H$74,2,FALSE)+VLOOKUP(D4,coeff!$F$3:$H$74,3,FALSE)*(LN(1/(1-C4)-1)/0.089))/(1+EXP(VLOOKUP(D4,coeff!$F$3:$H$74,2,FALSE)+VLOOKUP(D4,coeff!$F$3:$H$74,3,FALSE)*(LN(1/(1-C4)-1)/0.089))),(EXP(VLOOKUP(D4+0.5,coeff!$F$3:$H$74,2,FALSE)+VLOOKUP(D4+0.5,coeff!$F$3:$H$74,3,FALSE)*(LN(1/(1-C4)-1)/0.089))/(1+EXP(VLOOKUP(D4+0.5,coeff!$F$3:$H$74,2,FALSE)+VLOOKUP(D4+0.5,coeff!$F$3:$H$74,3,FALSE)*(LN(1/(1-C4)-1)/0.089)))+EXP(VLOOKUP(D4-0.5,coeff!$F$3:$H$74,2,FALSE)+VLOOKUP(D4-0.5,coeff!$F$3:$H$74,3,FALSE)*(LN(1/(1-C4)-1)/0.089))/(1+EXP(VLOOKUP(D4-0.5,coeff!$F$3:$H$74,2,FALSE)+VLOOKUP(D4-0.5,coeff!$F$3:$H$74,3,FALSE)*(LN(1/(1-C4)-1)/0.089))))/2)) -> 0.6320599937 | H4: =IF(OR(C4="",D4=""),"",IF(AND((G4*E4-1)>=0.05,K4=1),coeff!$C$5/coeff!$B$5*(G4*E4-1)/(E4-1),0)) -> 0 | I4: =IF(OR(C4="",D4=""),"",IF(AND((F4*(1-G4)-1)>=0.05,K4=1),coeff!$C$5/coeff!$B$5*(F4*(1-G4)-1)/(F4-1),0)) -> 0 | J4: =IF(OR(C4="",D4=""),"",IF((G4*E4-1)>0,1000*(G4*E4-1)/(E4-1)*G4*(E4-1)-(1-G4)*1000*(G4*E4-1)/(E4-1),IF(((1-G4)*F4-1)>0,1000*((1-G4)*F4-1)/(F4-1)*(1-G4)*(F4-1)-G4*1000*((1-G4)*F4-1)/(F4-1),0))) -> 42.54672665 | K4: =IF(J4=MAX($J$3:$J$8),1,0) -> 0
C5: =C4 -> 0.506 | D5: 6 | E5: 2.05 | F5: 2.1 | G5: =IF(OR(C5="",D5=""),"",IF(ISERROR(VLOOKUP(D5,coeff!$F$3:$H$74,2,FALSE))=FALSE,EXP(VLOOKUP(D5,coeff!$F$3:$H$74,2,FALSE)+VLOOKUP(D5,coeff!$F$3:$H$74,3,FALSE)*(LN(1/(1-C5)-1)/0.089))/(1+EXP(VLOOKUP(D5,coeff!$F$3:$H$74,2,FALSE)+VLOOKUP(D5,coeff!$F$3:$H$74,3,FALSE)*(LN(1/(1-C5)-1)/0.089))),(EXP(VLOOKUP(D5+0.5,coeff!$F$3:$H$74,2,FALSE)+VLOOKUP(D5+0.5,coeff!$F$3:$H$74,3,FALSE)*(LN(1/(1-C5)-1)/0.089))/(1+EXP(VLOOKUP(D5+0.5,coeff!$F$3:$H$74,2,FALSE)+VLOOKUP(D5+0.5,coeff!$F$3:$H$74,3,FALSE)*(LN(1/(1-C5)-1)/0.089)))+EXP(VLOOKUP(D5-0.5,coeff!$F$3:$H$74,2,FALSE)+VLOOKUP(D5-0.5,coeff!$F$3:$H$74,3,FALSE)*(LN(1/(1-C5)-1)/0.089))/(1+EXP(VLOOKUP(D5-0.5,coeff!$F$3:$H$74,2,FALSE)+VLOOKUP(D5-0.5,coeff!$F$3:$H$74,3,FALSE)*(LN(1/(1-C5)-1)/0.089))))/2)) -> 0.6489464362 | H5: =IF(OR(C5="",D5=""),"",IF(AND((G5*E5-1)>=0.05,K5=1),coeff!$C$5/coeff!$B$5*(G5*E5-1)/(E5-1),0)) -> 0 | I5: =IF(OR(C5="",D5=""),"",IF(AND((F5*(1-G5)-1)>=0.05,K5=1),coeff!$C$5/coeff!$B$5*(F5*(1-G5)-1)/(F5-1),0)) -> 0 | J5: 103.9282323 | K5: 0
C6: 0.506 | D6: 6.5 | E6: 2 | F6: 1.91 | G6: =IF(OR(C6="",D6=""),"",IF(ISERROR(VLOOKUP(D6,coeff!$F$3:$H$74,2,FALSE))=FALSE,EXP(VLOOKUP(D6,coeff!$F$3:$H$74,2,FALSE)+VLOOKUP(D6,coeff!$F$3:$H$74,3,FALSE)*(LN(1/(1-C6)-1)/0.089))/(1+EXP(VLOOKUP(D6,coeff!$F$3:$H$74,2,FALSE)+VLOOKUP(D6,coeff!$F$3:$H$74,3,FALSE)*(LN(1/(1-C6)-1)/0.089))),(EXP(VLOOKUP(D6+0.5,coeff!$F$3:$H$74,2,FALSE)+VLOOKUP(D6+0.5,coeff!$F$3:$H$74,3,FALSE)*(LN(1/(1-C6)-1)/0.089))/(1+EXP(VLOOKUP(D6+0.5,coeff!$F$3:$H$74,2,FALSE)+VLOOKUP(D6+0.5,coeff!$F$3:$H$74,3,FALSE)*(LN(1/(1-C6)-1)/0.089)))+EXP(VLOOKUP(D6-0.5,coeff!$F$3:$H$74,2,FALSE)+VLOOKUP(D6-0.5,coeff!$F$3:$H$74,3,FALSE)*(LN(1/(1-C6)-1)/0.089))/(1+EXP(VLOOKUP(D6-0.5,coeff!$F$3:$H$74,2,FALSE)+VLOOKUP(D6-0.5,coeff!$F$3:$H$74,3,FALSE)*(LN(1/(1-C6)-1)/0.089))))/2)) -> 0.6658328787 | H6: =IF(OR(C6="",D6=""),"",IF(AND((G6*E6-1)>=0.05,K6=1),coeff!$C$5/coeff!$B$5*(G6*E6-1)/(E6-1),0)) -> 0 | I6: =IF(OR(C6="",D6=""),"",IF(AND((F6*(1-G6)-1)>=0.05,K6=1),coeff!$C$5/coeff!$B$5*(F6*(1-G6)-1)/(F6-1),0)) -> 0 | J6: 110.0021747 | K6: 0
C7: 0.506 | D7: 7 | E7: 2 | F7: 1.91 | G7: =IF(OR(C7="",D7=""),"",IF(ISERROR(VLOOKUP(D7,coeff!$F$3:$H$74,2,FALSE))=FALSE,EXP(VLOOKUP(D7,coeff!$F$3:$H$74,2,FALSE)+VLOOKUP(D7,coeff!$F$3:$H$74,3,FALSE)*(LN(1/(1-C7)-1)/0.089))/(1+EXP(VLOOKUP(D7,coeff!$F$3:$H$74,2,FALSE)+VLOOKUP(D7,coeff!$F$3:$H$74,3,FALSE)*(LN(1/(1-C7)-1)/0.089))),(EXP(VLOOKUP(D7+0.5,coeff!$F$3:$H$74,2,FALSE)+VLOOKUP(D7+0.5,coeff!$F$3:$H$74,3,FALSE)*(LN(1/(1-C7)-1)/0.089))/(1+EXP(VLOOKUP(D7+0.5,coeff!$F$3:$H$74,2,FALSE)+VLOOKUP(D7+0.5,coeff!$F$3:$H$74,3,FALSE)*(LN(1/(1-C7)-1)/0.089)))+EXP(VLOOKUP(D7-0.5,coeff!$F$3:$H$74,2,FALSE)+VLOOKUP(D7-0.5,coeff!$F$3:$H$74,3,FALSE)*(LN(1/(1-C7)-1)/0.089))/(1+EXP(VLOOKUP(D7-0.5,coeff!$F$3:$H$74,2,FALSE)+VLOOKUP(D7-0.5,coeff!$F$3:$H$74,3,FALSE)*(LN(1/(1-C7)-1)/0.089))))/2)) -> 0.6728778604 | H7: =IF(OR(C7="",D7=""),"",IF(AND((G7*E7-1)>=0.05,K7=1),coeff!$C$5/coeff!$B$5*(G7*E7-1)/(E7-1),0)) -> 345.7557207 | I7: =IF(OR(C7="",D7=""),"",IF(AND((F7*(1-G7)-1)>=0.05,K7=1),coeff!$C$5/coeff!$B$5*(F7*(1-G7)-1)/(F7-1),0)) -> 0 | J7: 119.5470184 | K7: 1
C8: 0.506 | D8: 7 | E8: 2 | F8: 1.91 | G8: =IF(OR(C8="",D8=""),"",IF(ISERROR(VLOOKUP(D8,coeff!$F$3:$H$74,2,FALSE))=FALSE,EXP(VLOOKUP(D8,coeff!$F$3:$H$74,2,FALSE)+VLOOKUP(D8,coeff!$F$3:$H$74,3,FALSE)*(LN(1/(1-C8)-1)/0.089))/(1+EXP(VLOOKUP(D8,coeff!$F$3:$H$74,2,FALSE)+VLOOKUP(D8,coeff!$F$3:$H$74,3,FALSE)*(LN(1/(1-C8)-1)/0.089))),(EXP(VLOOKUP(D8+0.5,coeff!$F$3:$H$74,2,FALSE)+VLOOKUP(D8+0.5,coeff!$F$3:$H$74,3,FALSE)*(LN(1/(1-C8)-1)/0.089))/(1+EXP(VLOOKUP(D8+0.5,coeff!$F$3:$H$74,2,FALSE)+VLOOKUP(D8+0.5,coeff!$F$3:$H$74,3,FALSE)*(LN(1/(1-C8)-1)/0.089)))+EXP(VLOOKUP(D8-0.5,coeff!$F$3:$H$74,2,FALSE)+VLOOKUP(D8-0.5,coeff!$F$3:$H$74,3,FALSE)*(LN(1/(1-C8)-1)/0.089))/(1+EXP(VLOOKUP(D8-0.5,coeff!$F$3:$H$74,2,FALSE)+VLOOKUP(D8-0.5,coeff!$F$3:$H$74,3,FALSE)*(LN(1/(1-C8)-1)/0.089))))/2)) -> 0.6728778604 | H8: =IF(OR(C8="",D8=""),"",IF(AND((G8*E8-1)>=0.05,K8=1),coeff!$C$5/coeff!$B$5*(G8*E8-1)/(E8-1),0)) -> 345.7557207 | I8: =IF(OR(C8="",D8=""),"",IF(AND((F8*(1-G8)-1)>=0.05,K8=1),coeff!$C$5/coeff!$B$5*(F8*(1-G8)-1)/(F8-1),0)) -> 0 | J8: 119.5470184 | K8: 1
A10: Team1 | B10: Team2 | C10: PlayerProb | D10: Line | E10: Odds1 | F10: Odds2 | G10: LineProb | H10: $Bet1 | I10: $Bet2 | J10: Exp Profit | K10: Max
A11: =line!A5 -> Brisbane | B11: =line!B5 -> New Zealand | C11: =IF(line!C5="","",line!C5) -> 0.713 | D11: -9 | E11: 1.92 | F11: 1.99 | G11: =IF(OR(C11="",D11=""),"",IF(ISERROR(VLOOKUP(D11,coeff!$F$3:$H$74,2,FALSE))=FALSE,EXP(VLOOKUP(D11,coeff!$F$3:$H$74,2,FALSE)+VLOOKUP(D11,coeff!$F$3:$H$74,3,FALSE)*(LN(1/(1-C11)-1)/0.089))/(1+EXP(VLOOKUP(D11,coeff!$F$3:$H$74,2,FALSE)+VLOOKUP(D11,coeff!$F$3:$H$74,3,FALSE)*(LN(1/(1-C11)-1)/0.089))),(EXP(VLOOKUP(D11+0.5,coeff!$F$3:$H$74,2,FALSE)+VLOOKUP(D11+0.5,coeff!$F$3:$H$74,3,FALSE)*(LN(1/(1-C11)-1)/0.089))/(1+EXP(VLOOKUP(D11+0.5,coeff!$F$3:$H$74,2,FALSE)+VLOOKUP(D11+0.5,coeff!$F$3:$H$74,3,FALSE)*(LN(1/(1-C11)-1)/0.089)))+EXP(VLOOKUP(D11-0.5,coeff!$F$3:$H$74,2,FALSE)+VLOOKUP(D11-0.5,coeff!$F$3:$H$74,3,FALSE)*(LN(1/(1-C11)-1)/0.089))/(1+EXP(VLOOKUP(D11-0.5,coeff!$F$3:$H$74,2,FALSE)+VLOOKUP(D11-0.5,coeff!$F$3:$H$74,3,FALSE)*(LN(1/(1-C11)-1)/0.089))))/2)) -> 0.4797296023 | H11: =IF(OR(C11="",D11=""),"",IF(AND((G11*E11-1)>=0.05,K11=1),coeff!$C$5/coeff!$B$5*(G11*E11-1)/(E11-1),0)) -> 0 | I11: =IF(OR(C11="",D11=""),"",IF(AND((F11*(1-G11)-1)>=0.05,K11=1),coeff!$C$5/coeff!$B$5*(F11*(1-G11)-1)/(F11-1),0)) -> 0 | J11: =IF(OR(C11="",D11=""),"",IF((G11*E11-1)>0,1000*(G11*E11-1)/(E11-1)*G11*(E11-1)-(1-G11)*1000*(G11*E11-1)/(E11-1),IF(((1-G11)*F11-1)>0,1000*((1-G11)*F11-1)/(F11-1)*(1-G11)*(F11-1)-G11*1000*((1-G11)*F11-1)/(F11-1),0))) -> 1.261394658 | K11: =IF(J11=MAX($J$11:$J$16),1,0) -> 0
C12: =C11 -> 0.713 | D12: -9.5 | E12: 1.89 | F12: 2 | G12: =IF(OR(C12="",D12=""),"",IF(ISERROR(VLOOKUP(D12,coeff!$F$3:$H$74,2,FALSE))=FALSE,EXP(VLOOKUP(D12,coeff!$F$3:$H$74,2,FALSE)+VLOOKUP(D12,coeff!$F$3:$H$74,3,FALSE)*(LN(1/(1-C12)-1)/0.089))/(1+EXP(VLOOKUP(D12,coeff!$F$3:$H$74,2,FALSE)+VLOOKUP(D12,coeff!$F$3:$H$74,3,FALSE)*(LN(1/(1-C12)-1)/0.089))),(EXP(VLOOKUP(D12+0.5,coeff!$F$3:$H$74,2,FALSE)+VLOOKUP(D12+0.5,coeff!$F$3:$H$74,3,FALSE)*(LN(1/(1-C12)-1)/0.089))/(1+EXP(VLOOKUP(D12+0.5,coeff!$F$3:$H$74,2,FALSE)+VLOOKUP(D12+0.5,coeff!$F$3:$H$74,3,FALSE)*(LN(1/(1-C12)-1)/0.089)))+EXP(VLOOKUP(D12-0.5,coeff!$F$3:$H$74,2,FALSE)+VLOOKUP(D12-0.5,coeff!$F$3:$H$74,3,FALSE)*(LN(1/(1-C12)-1)/0.089))/(1+EXP(VLOOKUP(D12-0.5,coeff!$F$3:$H$74,2,FALSE)+VLOOKUP(D12-0.5,coeff!$F$3:$H$74,3,FALSE)*(LN(1/(1-C12)-1)/0.089))))/2)) -> 0.4782808171 | H12: =IF(OR(C12="",D12=""),"",IF(AND((G12*E12-1)>=0.05,K12=1),coeff!$C$5/coeff!$B$5*(G12*E12-1)/(E12-1),0)) -> 0 | I12: =IF(OR(C12="",D12=""),"",IF(AND((F12*(1-G12)-1)>=0.05,K12=1),coeff!$C$5/coeff!$B$5*(F12*(1-G12)-1)/(F12-1),0)) -> 0 | J12: =IF(OR(C12="",D12=""),"",IF((G12*E12-1)>0,1000*(G12*E12-1)/(E12-1)*G12*(E12-1)-(1-G12)*1000*(G12*E12-1)/(E12-1),IF(((1-G12)*F12-1)>0,1000*((1-G12)*F12-1)/(F12-1)*(1-G12)*(F12-1)-G12*1000*((1-G12)*F12-1)/(F12-1),0))) -> 1.886891618 | K12: =IF(J12=MAX($J$11:$J$16),1,0) -> 0
C13: =C12 -> 0.713 | D13: -10 | E13: 2.05 | F13: 1.9 | G13: =IF(OR(C13="",D13=""),"",IF(ISERROR(VLOOKUP(D13,coeff!$F$3:$H$74,2,FALSE))=FALSE,EXP(VLOOKUP(D13,coeff!$F$3:$H$74,2,FALSE)+VLOOKUP(D13,coeff!$F$3:$H$74,3,FALSE)*(LN(1/(1-C13)-1)/0.089))/(1+EXP(VLOOKUP(D13,coeff!$F$3:$H$74,2,FALSE)+VLOOKUP(D13,coeff!$F$3:$H$74,3,FALSE)*(LN(1/(1-C13)-1)/0.089))),(EXP(VLOOKUP(D13+0.5,coeff!$F$3:$H$74,2,FALSE)+VLOOKUP(D13+0.5,coeff!$F$3:$H$74,3,FALSE)*(LN(1/(1-C13)-1)/0.089))/(1+EXP(VLOOKUP(D13+0.5,coeff!$F$3:$H$74,2,FALSE)+VLOOKUP(D13+0.5,coeff!$F$3:$H$74,3,FALSE)*(LN(1/(1-C13)-1)/0.089)))+EXP(VLOOKUP(D13-0.5,coeff!$F$3:$H$74,2,FALSE)+VLOOKUP(D13-0.5,coeff!$F$3:$H$74,3,FALSE)*(LN(1/(1-C13)-1)/0.089))/(1+EXP(VLOOKUP(D13-0.5,coeff!$F$3:$H$74,2,FALSE)+VLOOKUP(D13-0.5,coeff!$F$3:$H$74,3,FALSE)*(LN(1/(1-C13)-1)/0.089))))/2)) -> 0.4639132447 | H13: =IF(OR(C13="",D13=""),"",IF(AND((G13*E13-1)>=0.05,K13=1),coeff!$C$5/coeff!$B$5*(G13*E13-1)/(E13-1),0)) -> 0 | I13: =IF(OR(C13="",D13=""),"",IF(AND((F13*(1-G13)-1)>=0.05,K13=1),coeff!$C$5/coeff!$B$5*(F13*(1-G13)-1)/(F13-1),0)) -> 0 | J13: 0.382947888 | K13: 0
C14: 0.713 | D14: -10.5 | E14: 2 | F14: 1.91 | G14: =IF(OR(C14="",D14=""),"",IF(ISERROR(VLOOKUP(D14,coeff!$F$3:$H$74,2,FALSE))=FALSE,EXP(VLOOKUP(D14,coeff!$F$3:$H$74,2,FALSE)+VLOOKUP(D14,coeff!$F$3:$H$74,3,FALSE)*(LN(1/(1-C14)-1)/0.089))/(1+EXP(VLOOKUP(D14,coeff!$F$3:$H$74,2,FALSE)+VLOOKUP(D14,coeff!$F$3:$H$74,3,FALSE)*(LN(1/(1-C14)-1)/0.089))),(EXP(VLOOKUP(D14+0.5,coeff!$F$3:$H$74,2,FALSE)+VLOOKUP(D14+0.5,coeff!$F$3:$H$74,3,FALSE)*(LN(1/(1-C14)-1)/0.089))/(1+EXP(VLOOKUP(D14+0.5,coeff!$F$3:$H$74,2,FALSE)+VLOOKUP(D14+0.5,coeff!$F$3:$H$74,3,FALSE)*(LN(1/(1-C14)-1)/0.089)))+EXP(VLOOKUP(D14-0.5,coeff!$F$3:$H$74,2,FALSE)+VLOOKUP(D14-0.5,coeff!$F$3:$H$74,3,FALSE)*(LN(1/(1-C14)-1)/0.089))/(1+EXP(VLOOKUP(D14-0.5,coeff!$F$3:$H$74,2,FALSE)+VLOOKUP(D14-0.5,coeff!$F$3:$H$74,3,FALSE)*(LN(1/(1-C14)-1)/0.089))))/2)) -> 0.4495456723 | H14: =IF(OR(C14="",D14=""),"",IF(AND((G14*E14-1)>=0.05,K14=1),coeff!$C$5/coeff!$B$5*(G14*E14-1)/(E14-1),0)) -> 0 | I14: =IF(OR(C14="",D14=""),"",IF(AND((F14*(1-G14)-1)>=0.05,K14=1),coeff!$C$5/coeff!$B$5*(F14*(1-G14)-1)/(F14-1),0)) -> 0 | J14: 2.899612494 | K14: 0
C15: 0.713 | D15: -11 | E15: 2 | F15: 1.91 | G15: =IF(OR(C15="",D15=""),"",IF(ISERROR(VLOOKUP(D15,coeff!$F$3:$H$74,2,FALSE))=FALSE,EXP(VLOOKUP(D15,coeff!$F$3:$H$74,2,FALSE)+VLOOKUP(D15,coeff!$F$3:$H$74,3,FALSE)*(LN(1/(1-C15)-1)/0.089))/(1+EXP(VLOOKUP(D15,coeff!$F$3:$H$74,2,FALSE)+VLOOKUP(D15,coeff!$F$3:$H$74,3,FALSE)*(LN(1/(1-C15)-1)/0.089))),(EXP(VLOOKUP(D15+0.5,coeff!$F$3:$H$74,2,FALSE)+VLOOKUP(D15+0.5,coeff!$F$3:$H$74,3,FALSE)*(LN(1/(1-C15)-1)/0.089))/(1+EXP(VLOOKUP(D15+0.5,coeff!$F$3:$H$74,2,FALSE)+VLOOKUP(D15+0.5,coeff!$F$3:$H$74,3,FALSE)*(LN(1/(1-C15)-1)/0.089)))+EXP(VLOOKUP(D15-0.5,coeff!$F$3:$H$74,2,FALSE)+VLOOKUP(D15-0.5,coeff!$F$3:$H$74,3,FALSE)*(LN(1/(1-C15)-1)/0.089))/(1+EXP(VLOOKUP(D15-0.5,coeff!$F$3:$H$74,2,FALSE)+VLOOKUP(D15-0.5,coeff!$F$3:$H$74,3,FALSE)*(LN(1/(1-C15)-1)/0.089))))/2)) -> 0.446705647 | H15: =IF(OR(C15="",D15=""),"",IF(AND((G15*E15-1)>=0.05,K15=1),coeff!$C$5/coeff!$B$5*(G15*E15-1)/(E15-1),0)) -> 0 | I15: =IF(OR(C15="",D15=""),"",IF(AND((F15*(1-G15)-1)>=0.05,K15=1),coeff!$C$5/coeff!$B$5*(F15*(1-G15)-1)/(F15-1),0)) -> 0 | J15: 3.544346821 | K15: 0
C16: 0.713 | D16: -11.5 | E16: 2 | F16: 1.91 | G16: =IF(OR(C16="",D16=""),"",IF(ISERROR(VLOOKUP(D16,coeff!$F$3:$H$74,2,FALSE))=FALSE,EXP(VLOOKUP(D16,coeff!$F$3:$H$74,2,FALSE)+VLOOKUP(D16,coeff!$F$3:$H$74,3,FALSE)*(LN(1/(1-C16)-1)/0.089))/(1+EXP(VLOOKUP(D16,coeff!$F$3:$H$74,2,FALSE)+VLOOKUP(D16,coeff!$F$3:$H$74,3,FALSE)*(LN(1/(1-C16)-1)/0.089))),(EXP(VLOOKUP(D16+0.5,coeff!$F$3:$H$74,2,FALSE)+VLOOKUP(D16+0.5,coeff!$F$3:$H$74,3,FALSE)*(LN(1/(1-C16)-1)/0.089))/(1+EXP(VLOOKUP(D16+0.5,coeff!$F$3:$H$74,2,FALSE)+VLOOKUP(D16+0.5,coeff!$F$3:$H$74,3,FALSE)*(LN(1/(1-C16)-1)/0.089)))+EXP(VLOOKUP(D16-0.5,coeff!$F$3:$H$74,2,FALSE)+VLOOKUP(D16-0.5,coeff!$F$3:$H$74,3,FALSE)*(LN(1/(1-C16)-1)/0.089))/(1+EXP(VLOOKUP(D16-0.5,coeff!$F$3:$H$74,2,FALSE)+VLOOKUP(D16-0.5,coeff!$F$3:$H$74,3,FALSE)*(LN(1/(1-C16)-1)/0.089))))/2)) -> 0.4438656216 | H16: =IF(OR(C16="",D16=""),"",IF(AND((G16*E16-1)>=0.05,K16=1),coeff!$C$5/coeff!$B$5*(G16*E16-1)/(E16-1),0)) -> 0 | I16: =IF(OR(C16="",D16=""),"",IF(AND((F16*(1-G16)-1)>=0.05,K16=1),coeff!$C$5/coeff!$B$5*(F16*(1-G16)-1)/(F16-1),0)) -> 68.3699591 | J16: 4.253750689 | K16: 1
A18: Team1 | B18: Team2 | C18: PlayerProb | D18: Line | E18: Odds1 | F18: Odds2 | G18: LineProb | H18: $Bet1 | I18: $Bet2 | J18: Exp Profit | K18: Max
A19: =line!A6 -> 0 | B19: =line!B6 -> 0 | C19: =IF(line!C6="","",line!C6) ->  | D19: 33.5 | E19: 1.92 | F19: 1.99 | G19: =IF(OR(C19="",D19=""),"",IF(ISERROR(VLOOKUP(D19,coeff!$F$3:$H$74,2,FALSE))=FALSE,EXP(VLOOKUP(D19,coeff!$F$3:$H$74,2,FALSE)+VLOOKUP(D19,coeff!$F$3:$H$74,3,FALSE)*(LN(1/(1-C19)-1)/0.089))/(1+EXP(VLOOKUP(D19,coeff!$F$3:$H$74,2,FALSE)+VLOOKUP(D19,coeff!$F$3:$H$74,3,FALSE)*(LN(1/(1-C19)-1)/0.089))),(EXP(VLOOKUP(D19+0.5,coeff!$F$3:$H$74,2,FALSE)+VLOOKUP(D19+0.5,coeff!$F$3:$H$74,3,FALSE)*(LN(1/(1-C19)-1)/0.089))/(1+EXP(VLOOKUP(D19+0.5,coeff!$F$3:$H$74,2,FALSE)+VLOOKUP(D19+0.5,coeff!$F$3:$H$74,3,FALSE)*(LN(1/(1-C19)-1)/0.089)))+EXP(VLOOKUP(D19-0.5,coeff!$F$3:$H$74,2,FALSE)+VLOOKUP(D19-0.5,coeff!$F$3:$H$74,3,FALSE)*(LN(1/(1-C19)-1)/0.089))/(1+EXP(VLOOKUP(D19-0.5,coeff!$F$3:$H$74,2,FALSE)+VLOOKUP(D19-0.5,coeff!$F$3:$H$74,3,FALSE)*(LN(1/(1-C19)-1)/0.089))))/2)) ->  | H19: =IF(OR(C19="",D19=""),"",IF(AND((G19*E19-1)>=0.05,K19=1),coeff!$C$5/coeff!$B$5*(G19*E19-1)/(E19-1),0)) ->  | I19: =IF(OR(C19="",D19=""),"",IF(AND((F19*(1-G19)-1)>=0.05,K19=1),coeff!$C$5/coeff!$B$5*(F19*(1-G19)-1)/(F19-1),0)) ->  | J19: =IF(OR(C19="",D19=""),"",IF((G19*E19-1)>0,1000*(G19*E19-1)/(E19-1)*G19*(E19-1)-(1-G19)*1000*(G19*E19-1)/(E19-1),IF(((1-G19)*F19-1)>0,1000*((1-G19)*F19-1)/(F19-1)*(1-G19)*(F19-1)-G19*1000*((1-G19)*F19-1)/(F19-1),0))) ->  | K19: =IF(J19=MAX($J$19:$J$24),1,0) -> 0
C20: =C19 ->  | D20: 34.5 | E20: 1.89 | F20: 2 | G20: =IF(OR(C20="",D20=""),"",IF(ISERROR(VLOOKUP(D20,coeff!$F$3:$H$74,2,FALSE))=FALSE,EXP(VLOOKUP(D20,coeff!$F$3:$H$74,2,FALSE)+VLOOKUP(D20,coeff!$F$3:$H$74,3,FALSE)*(LN(1/(1-C20)-1)/0.089))/(1+EXP(VLOOKUP(D20,coeff!$F$3:$H$74,2,FALSE)+VLOOKUP(D20,coeff!$F$3:$H$74,3,FALSE)*(LN(1/(1-C20)-1)/0.089))),(EXP(VLOOKUP(D20+0.5,coeff!$F$3:$H$74,2,FALSE)+VLOOKUP(D20+0.5,coeff!$F$3:$H$74,3,FALSE)*(LN(1/(1-C20)-1)/0.089))/(1+EXP(VLOOKUP(D20+0.5,coeff!$F$3:$H$74,2,FALSE)+VLOOKUP(D20+0.5,coeff!$F$3:$H$74,3,FALSE)*(LN(1/(1-C20)-1)/0.089)))+EXP(VLOOKUP(D20-0.5,coeff!$F$3:$H$74,2,FALSE)+VLOOKUP(D20-0.5,coeff!$F$3:$H$74,3,FALSE)*(LN(1/(1-C20)-1)/0.089))/(1+EXP(VLOOKUP(D20-0.5,coeff!$F$3:$H$74,2,FALSE)+VLOOKUP(D20-0.5,coeff!$F$3:$H$74,3,FALSE)*(LN(1/(1-C20)-1)/0.089))))/2)) ->  | H20: =IF(OR(C20="",D20=""),"",IF(AND((G20*E20-1)>=0.05,K20=1),coeff!$C$5/coeff!$B$5*(G20*E20-1)/(E20-1),0)) ->  | I20: =IF(OR(C20="",D20=""),"",IF(AND((F20*(1-G20)-1)>=0.05,K20=1),coeff!$C$5/coeff!$B$5*(F20*(1-G20)-1)/(F20-1),0)) ->  | J20: =IF(OR(C20="",D20=""),"",IF((G20*E20-1)>0,1000*(G20*E20-1)/(E20-1)*G20*(E20-1)-(1-G20)*1000*(G20*E20-1)/(E20-1),IF(((1-G20)*F20-1)>0,1000*((1-G20)*F20-1)/(F20-1)*(1-G20)*(F20-1)-G20*1000*((1-G20)*F20-1)/(F20-1),0))) ->  | K20: =IF(J20=MAX($J$19:$J$24),1,0) -> 0
C21: =C20 ->  | D21: 30.5 | E21: 2.05 | F21: 1.9 | G21: =IF(OR(C21="",D21=""),"",IF(ISERROR(VLOOKUP(D21,coeff!$F$3:$H$74,2,FALSE))=FALSE,EXP(VLOOKUP(D21,coeff!$F$3:$H$74,2,FALSE)+VLOOKUP(D21,coeff!$F$3:$H$74,3,FALSE)*(LN(1/(1-C21)-1)/0.089))/(1+EXP(VLOOKUP(D21,coeff!$F$3:$H$74,2,FALSE)+VLOOKUP(D21,coeff!$F$3:$H$74,3,FALSE)*(LN(1/(1-C21)-1)/0.089))),(EXP(VLOOKUP(D21+0.5,coeff!$F$3:$H$74,2,FALSE)+VLOOKUP(D21+0.5,coeff!$F$3:$H$74,3,FALSE)*(LN(1/(1-C21)-1)/0.089))/(1+EXP(VLOOKUP(D21+0.5,coeff!$F$3:$H$74,2,FALSE)+VLOOKUP(D21+0.5,coeff!$F$3:$H$74,3,FALSE)*(LN(1/(1-C21)-1)/0.089)))+EXP(VLOOKUP(D21-0.5,coeff!$F$3:$H$74,2,FALSE)+VLOOKUP(D21-0.5,coeff!$F$3:$H$74,3,FALSE)*(LN(1/(1-C21)-1)/0.089))/(1+EXP(VLOOKUP(D21-0.5,coeff!$F$3:$H$74,2,FALSE)+VLOOKUP(D21-0.5,coeff!$F$3:$H$74,3,FALSE)*(LN(1/(1-C21)-1)/0.089))))/2)) ->  | H21: =IF(OR(C21="",D21=""),"",IF(AND((G21*E21-1)>=0.05,K21=1),coeff!$C$5/coeff!$B$5*(G21*E21-1)/(E21-1),0)) ->  | I21: =IF(OR(C21="",D21=""),"",IF(AND((F21*(1-G21)-1)>=0.05,K21=1),coeff!$C$5/coeff!$B$5*(F21*(1-G21)-1)/(F21-1),0)) ->  | K21: 0
D22: 31.5 | E22: 2 | F22: 1.91 | G22: =IF(OR(C22="",D22=""),"",IF(ISERROR(VLOOKUP(D22,coeff!$F$3:$H$74,2,FALSE))=FALSE,EXP(VLOOKUP(D22,coeff!$F$3:$H$74,2,FALSE)+VLOOKUP(D22,coeff!$F$3:$H$74,3,FALSE)*(LN(1/(1-C22)-1)/0.089))/(1+EXP(VLOOKUP(D22,coeff!$F$3:$H$74,2,FALSE)+VLOOKUP(D22,coeff!$F$3:$H$74,3,FALSE)*(LN(1/(1-C22)-1)/0.089))),(EXP(VLOOKUP(D22+0.5,coeff!$F$3:$H$74,2,FALSE)+VLOOKUP(D22+0.5,coeff!$F$3:$H$74,3,FALSE)*(LN(1/(1-C22)-1)/0.089))/(1+EXP(VLOOKUP(D22+0.5,coeff!$F$3:$H$74,2,FALSE)+VLOOKUP(D22+0.5,coeff!$F$3:$H$74,3,FALSE)*(LN(1/(1-C22)-1)/0.089)))+EXP(VLOOKUP(D22-0.5,coeff!$F$3:$H$74,2,FALSE)+VLOOKUP(D22-0.5,coeff!$F$3:$H$74,3,FALSE)*(LN(1/(1-C22)-1)/0.089))/(1+EXP(VLOOKUP(D22-0.5,coeff!$F$3:$H$74,2,FALSE)+VLOOKUP(D22-0.5,coeff!$F$3:$H$74,3,FALSE)*(LN(1/(1-C22)-1)/0.089))))/2)) ->  | H22: =IF(OR(C22="",D22=""),"",IF(AND((G22*E22-1)>=0.05,K22=1),coeff!$C$5/coeff!$B$5*(G22*E22-1)/(E22-1),0)) ->  | I22: =IF(OR(C22="",D22=""),"",IF(AND((F22*(1-G22)-1)>=0.05,K22=1),coeff!$C$5/coeff!$B$5*(F22*(1-G22)-1)/(F22-1),0)) ->  | K22: 0
D23: 31.5 | E23: 2 | F23: 1.91 | G23: =IF(OR(C23="",D23=""),"",IF(ISERROR(VLOOKUP(D23,coeff!$F$3:$H$74,2,FALSE))=FALSE,EXP(VLOOKUP(D23,coeff!$F$3:$H$74,2,FALSE)+VLOOKUP(D23,coeff!$F$3:$H$74,3,FALSE)*(LN(1/(1-C23)-1)/0.089))/(1+EXP(VLOOKUP(D23,coeff!$F$3:$H$74,2,FALSE)+VLOOKUP(D23,coeff!$F$3:$H$74,3,FALSE)*(LN(1/(1-C23)-1)/0.089))),(EXP(VLOOKUP(D23+0.5,coeff!$F$3:$H$74,2,FALSE)+VLOOKUP(D23+0.5,coeff!$F$3:$H$74,3,FALSE)*(LN(1/(1-C23)-1)/0.089))/(1+EXP(VLOOKUP(D23+0.5,coeff!$F$3:$H$74,2,FALSE)+VLOOKUP(D23+0.5,coeff!$F$3:$H$74,3,FALSE)*(LN(1/(1-C23)-1)/0.089)))+EXP(VLOOKUP(D23-0.5,coeff!$F$3:$H$74,2,FALSE)+VLOOKUP(D23-0.5,coeff!$F$3:$H$74,3,FALSE)*(LN(1/(1-C23)-1)/0.089))/(1+EXP(VLOOKUP(D23-0.5,coeff!$F$3:$H$74,2,FALSE)+VLOOKUP(D23-0.5,coeff!$F$3:$H$74,3,FALSE)*(LN(1/(1-C23)-1)/0.089))))/2)) ->  | H23: =IF(OR(C23="",D23=""),"",IF(AND((G23*E23-1)>=0.05,K23=1),coeff!$C$5/coeff!$B$5*(G23*E23-1)/(E23-1),0)) ->  | I23: =IF(OR(C23="",D23=""),"",IF(AND((F23*(1-G23)-1)>=0.05,K23=1),coeff!$C$5/coeff!$B$5*(F23*(1-G23)-1)/(F23-1),0)) ->  | K23: 0
D24: 31.5 | E24: 2 | F24: 1.91 | G24: =IF(OR(C24="",D24=""),"",IF(ISERROR(VLOOKUP(D24,coeff!$F$3:$H$74,2,FALSE))=FALSE,EXP(VLOOKUP(D24,coeff!$F$3:$H$74,2,FALSE)+VLOOKUP(D24,coeff!$F$3:$H$74,3,FALSE)*(LN(1/(1-C24)-1)/0.089))/(1+EXP(VLOOKUP(D24,coeff!$F$3:$H$74,2,FALSE)+VLOOKUP(D24,coeff!$F$3:$H$74,3,FALSE)*(LN(1/(1-C24)-1)/0.089))),(EXP(VLOOKUP(D24+0.5,coeff!$F$3:$H$74,2,FALSE)+VLOOKUP(D24+0.5,coeff!$F$3:$H$74,3,FALSE)*(LN(1/(1-C24)-1)/0.089))/(1+EXP(VLOOKUP(D24+0.5,coeff!$F$3:$H$74,2,FALSE)+VLOOKUP(D24+0.5,coeff!$F$3:$H$74,3,FALSE)*(LN(1/(1-C24)-1)/0.089)))+EXP(VLOOKUP(D24-0.5,coeff!$F$3:$H$74,2,FALSE)+VLOOKUP(D24-0.5,coeff!$F$3:$H$74,3,FALSE)*(LN(1/(1-C24)-1)/0.089))/(1+EXP(VLOOKUP(D24-0.5,coeff!$F$3:$H$74,2,FALSE)+VLOOKUP(D24-0.5,coeff!$F$3:$H$74,3,FALSE)*(LN(1/(1-C24)-1)/0.089))))/2)) ->  | H24: =IF(OR(C24="",D24=""),"",IF(AND((G24*E24-1)>=0.05,K24=1),coeff!$C$5/coeff!$B$5*(G24*E24-1)/(E24-1),0)) ->  | I24: =IF(OR(C24="",D24=""),"",IF(AND((F24*(1-G24)-1)>=0.05,K24=1),coeff!$C$5/coeff!$B$5*(F24*(1-G24)-1)/(F24-1),0)) ->  | K24: 0
A26: Team1 | B26: Team2 | C26: PlayerProb | D26: Line | E26: Odds1 | F26: Odds2 | G26: LineProb | H26: $Bet1 | I26: $Bet2 | J26: Exp Profit | K26: Max
A27: =line!A7 -> 0 | B27: =line!B7 -> 0 | C27: =IF(line!C7="","",line!C7) ->  | D27: 33.5 | E27: 1.92 | F27: 1.99 | G27: =IF(OR(C27="",D27=""),"",IF(ISERROR(VLOOKUP(D27,coeff!$F$3:$H$74,2,FALSE))=FALSE,EXP(VLOOKUP(D27,coeff!$F$3:$H$74,2,FALSE)+VLOOKUP(D27,coeff!$F$3:$H$74,3,FALSE)*(LN(1/(1-C27)-1)/0.089))/(1+EXP(VLOOKUP(D27,coeff!$F$3:$H$74,2,FALSE)+VLOOKUP(D27,coeff!$F$3:$H$74,3,FALSE)*(LN(1/(1-C27)-1)/0.089))),(EXP(VLOOKUP(D27+0.5,coeff!$F$3:$H$74,2,FALSE)+VLOOKUP(D27+0.5,coeff!$F$3:$H$74,3,FALSE)*(LN(1/(1-C27)-1)/0.089))/(1+EXP(VLOOKUP(D27+0.5,coeff!$F$3:$H$74,2,FALSE)+VLOOKUP(D27+0.5,coeff!$F$3:$H$74,3,FALSE)*(LN(1/(1-C27)-1)/0.089)))+EXP(VLOOKUP(D27-0.5,coeff!$F$3:$H$74,2,FALSE)+VLOOKUP(D27-0.5,coeff!$F$3:$H$74,3,FALSE)*(LN(1/(1-C27)-1)/0.089))/(1+EXP(VLOOKUP(D27-0.5,coeff!$F$3:$H$74,2,FALSE)+VLOOKUP(D27-0.5,coeff!$F$3:$H$74,3,FALSE)*(LN(1/(1-C27)-1)/0.089))))/2)) ->  | H27: =IF(OR(C27="",D27=""),"",IF(AND((G27*E27-1)>=0.05,K27=1),coeff!$C$5/coeff!$B$5*(G27*E27-1)/(E27-1),0)) ->  | I27: =IF(OR(C27="",D27=""),"",IF(AND((F27*(1-G27)-1)>=0.05,K27=1),coeff!$C$5/coeff!$B$5*(F27*(1-G27)-1)/(F27-1),0)) ->  | J27: =IF(OR(C27="",D27=""),"",IF((G27*E27-1)>0,1000*(G27*E27-1)/(E27-1)*G27*(E27-1)-(1-G27)*1000*(G27*E27-1)/(E27-1),IF(((1-G27)*F27-1)>0,1000*((1-G27)*F27-1)/(F27-1)*(1-G27)*(F27-1)-G27*1000*((1-G27)*F27-1)/(F27-1),0))) ->  | K27: =IF(J27=MAX($J$27:$J$32),1,0) -> 0
C28: =C27 ->  | D28: 34.5 | E28: 1.89 | F28: 2 | G28: =IF(OR(C28="",D28=""),"",IF(ISERROR(VLOOKUP(D28,coeff!$F$3:$H$74,2,FALSE))=FALSE,EXP(VLOOKUP(D28,coeff!$F$3:$H$74,2,FALSE)+VLOOKUP(D28,coeff!$F$3:$H$74,3,FALSE)*(LN(1/(1-C28)-1)/0.089))/(1+EXP(VLOOKUP(D28,coeff!$F$3:$H$74,2,FALSE)+VLOOKUP(D28,coeff!$F$3:$H$74,3,FALSE)*(LN(1/(1-C28)-1)/0.089))),(EXP(VLOOKUP(D28+0.5,coeff!$F$3:$H$74,2,FALSE)+VLOOKUP(D28+0.5,coeff!$F$3:$H$74,3,FALSE)*(LN(1/(1-C28)-1)/0.089))/(1+EXP(VLOOKUP(D28+0.5,coeff!$F$3:$H$74,2,FALSE)+VLOOKUP(D28+0.5,coeff!$F$3:$H$74,3,FALSE)*(LN(1/(1-C28)-1)/0.089)))+EXP(VLOOKUP(D28-0.5,coeff!$F$3:$H$74,2,FALSE)+VLOOKUP(D28-0.5,coeff!$F$3:$H$74,3,FALSE)*(LN(1/(1-C28)-1)/0.089))/(1+EXP(VLOOKUP(D28-0.5,coeff!$F$3:$H$74,2,FALSE)+VLOOKUP(D28-0.5,coeff!$F$3:$H$74,3,FALSE)*(LN(1/(1-C28)-1)/0.089))))/2)) ->  | H28: =IF(OR(C28="",D28=""),"",IF(AND((G28*E28-1)>=0.05,K28=1),coeff!$C$5/coeff!$B$5*(G28*E28-1)/(E28-1),0)) ->  | I28: =IF(OR(C28="",D28=""),"",IF(AND((F28*(1-G28)-1)>=0.05,K28=1),coeff!$C$5/coeff!$B$5*(F28*(1-G28)-1)/(F28-1),0)) ->  | J28: =IF(OR(C28="",D28=""),"",IF((G28*E28-1)>0,1000*(G28*E28-1)/(E28-1)*G28*(E28-1)-(1-G28)*1000*(G28*E28-1)/(E28-1),IF(((1-G28)*F28-1)>0,1000*((1-G28)*F28-1)/(F28-1)*(1-G28)*(F28-1)-G28*1000*((1-G28)*F28-1)/(F28-1),0))) ->  | K28: =IF(J28=MAX($J$27:$J$32),1,0) -> 0
C29: =C28 ->  | D29: 30.5 | E29: 2.05 | F29: 1.9 | G29: =IF(OR(C29="",D29=""),"",IF(ISERROR(VLOOKUP(D29,coeff!$F$3:$H$74,2,FALSE))=FALSE,EXP(VLOOKUP(D29,coeff!$F$3:$H$74,2,FALSE)+VLOOKUP(D29,coeff!$F$3:$H$74,3,FALSE)*(LN(1/(1-C29)-1)/0.089))/(1+EXP(VLOOKUP(D29,coeff!$F$3:$H$74,2,FALSE)+VLOOKUP(D29,coeff!$F$3:$H$74,3,FALSE)*(LN(1/(1-C29)-1)/0.089))),(EXP(VLOOKUP(D29+0.5,coeff!$F$3:$H$74,2,FALSE)+VLOOKUP(D29+0.5,coeff!$F$3:$H$74,3,FALSE)*(LN(1/(1-C29)-1)/0.089))/(1+EXP(VLOOKUP(D29+0.5,coeff!$F$3:$H$74,2,FALSE)+VLOOKUP(D29+0.5,coeff!$F$3:$H$74,3,FALSE)*(LN(1/(1-C29)-1)/0.089)))+EXP(VLOOKUP(D29-0.5,coeff!$F$3:$H$74,2,FALSE)+VLOOKUP(D29-0.5,coeff!$F$3:$H$74,3,FALSE)*(LN(1/(1-C29)-1)/0.089))/(1+EXP(VLOOKUP(D29-0.5,coeff!$F$3:$H$74,2,FALSE)+VLOOKUP(D29-0.5,coeff!$F$3:$H$74,3,FALSE)*(LN(1/(1-C29)-1)/0.089))))/2)) ->  | H29: =IF(OR(C29="",D29=""),"",IF(AND((G29*E29-1)>=0.05,K29=1),coeff!$C$5/coeff!$B$5*(G29*E29-1)/(E29-1),0)) ->  | I29: =IF(OR(C29="",D29=""),"",IF(AND((F29*(1-G29)-1)>=0.05,K29=1),coeff!$C$5/coeff!$B$5*(F29*(1-G29)-1)/(F29-1),0)) ->  | K29: 0
D30: 31.5 | E30: 2 | F30: 1.91 | G30: =IF(OR(C30="",D30=""),"",IF(ISERROR(VLOOKUP(D30,coeff!$F$3:$H$74,2,FALSE))=FALSE,EXP(VLOOKUP(D30,coeff!$F$3:$H$74,2,FALSE)+VLOOKUP(D30,coeff!$F$3:$H$74,3,FALSE)*(LN(1/(1-C30)-1)/0.089))/(1+EXP(VLOOKUP(D30,coeff!$F$3:$H$74,2,FALSE)+VLOOKUP(D30,coeff!$F$3:$H$74,3,FALSE)*(LN(1/(1-C30)-1)/0.089))),(EXP(VLOOKUP(D30+0.5,coeff!$F$3:$H$74,2,FALSE)+VLOOKUP(D30+0.5,coeff!$F$3:$H$74,3,FALSE)*(LN(1/(1-C30)-1)/0.089))/(1+EXP(VLOOKUP(D30+0.5,coeff!$F$3:$H$74,2,FALSE)+VLOOKUP(D30+0.5,coeff!$F$3:$H$74,3,FALSE)*(LN(1/(1-C30)-1)/0.089)))+EXP(VLOOKUP(D30-0.5,coeff!$F$3:$H$74,2,FALSE)+VLOOKUP(D30-0.5,coeff!$F$3:$H$74,3,FALSE)*(LN(1/(1-C30)-1)/0.089))/(1+EXP(VLOOKUP(D30-0.5,coeff!$F$3:$H$74,2,FALSE)+VLOOKUP(D30-0.5,coeff!$F$3:$H$74,3,FALSE)*(LN(1/(1-C30)-1)/0.089))))/2)) ->  | H30: =IF(OR(C30="",D30=""),"",IF(AND((G30*E30-1)>=0.05,K30=1),coeff!$C$5/coeff!$B$5*(G30*E30-1)/(E30-1),0)) ->  | I30: =IF(OR(C30="",D30=""),"",IF(AND((F30*(1-G30)-1)>=0.05,K30=1),coeff!$C$5/coeff!$B$5*(F30*(1-G30)-1)/(F30-1),0)) ->  | K30: 0
D31: 31.5 | E31: 2 | F31: 1.91 | G31: =IF(OR(C31="",D31=""),"",IF(ISERROR(VLOOKUP(D31,coeff!$F$3:$H$74,2,FALSE))=FALSE,EXP(VLOOKUP(D31,coeff!$F$3:$H$74,2,FALSE)+VLOOKUP(D31,coeff!$F$3:$H$74,3,FALSE)*(LN(1/(1-C31)-1)/0.089))/(1+EXP(VLOOKUP(D31,coeff!$F$3:$H$74,2,FALSE)+VLOOKUP(D31,coeff!$F$3:$H$74,3,FALSE)*(LN(1/(1-C31)-1)/0.089))),(EXP(VLOOKUP(D31+0.5,coeff!$F$3:$H$74,2,FALSE)+VLOOKUP(D31+0.5,coeff!$F$3:$H$74,3,FALSE)*(LN(1/(1-C31)-1)/0.089))/(1+EXP(VLOOKUP(D31+0.5,coeff!$F$3:$H$74,2,FALSE)+VLOOKUP(D31+0.5,coeff!$F$3:$H$74,3,FALSE)*(LN(1/(1-C31)-1)/0.089)))+EXP(VLOOKUP(D31-0.5,coeff!$F$3:$H$74,2,FALSE)+VLOOKUP(D31-0.5,coeff!$F$3:$H$74,3,FALSE)*(LN(1/(1-C31)-1)/0.089))/(1+EXP(VLOOKUP(D31-0.5,coeff!$F$3:$H$74,2,FALSE)+VLOOKUP(D31-0.5,coeff!$F$3:$H$74,3,FALSE)*(LN(1/(1-C31)-1)/0.089))))/2)) ->  | H31: =IF(OR(C31="",D31=""),"",IF(AND((G31*E31-1)>=0.05,K31=1),coeff!$C$5/coeff!$B$5*(G31*E31-1)/(E31-1),0)) ->  | I31: =IF(OR(C31="",D31=""),"",IF(AND((F31*(1-G31)-1)>=0.05,K31=1),coeff!$C$5/coeff!$B$5*(F31*(1-G31)-1)/(F31-1),0)) ->  | K31: 0
D32: 31.5 | E32: 2 | F32: 1.91 | G32: =IF(OR(C32="",D32=""),"",IF(ISERROR(VLOOKUP(D32,coeff!$F$3:$H$74,2,FALSE))=FALSE,EXP(VLOOKUP(D32,coeff!$F$3:$H$74,2,FALSE)+VLOOKUP(D32,coeff!$F$3:$H$74,3,FALSE)*(LN(1/(1-C32)-1)/0.089))/(1+EXP(VLOOKUP(D32,coeff!$F$3:$H$74,2,FALSE)+VLOOKUP(D32,coeff!$F$3:$H$74,3,FALSE)*(LN(1/(1-C32)-1)/0.089))),(EXP(VLOOKUP(D32+0.5,coeff!$F$3:$H$74,2,FALSE)+VLOOKUP(D32+0.5,coeff!$F$3:$H$74,3,FALSE)*(LN(1/(1-C32)-1)/0.089))/(1+EXP(VLOOKUP(D32+0.5,coeff!$F$3:$H$74,2,FALSE)+VLOOKUP(D32+0.5,coeff!$F$3:$H$74,3,FALSE)*(LN(1/(1-C32)-1)/0.089)))+EXP(VLOOKUP(D32-0.5,coeff!$F$3:$H$74,2,FALSE)+VLOOKUP(D32-0.5,coeff!$F$3:$H$74,3,FALSE)*(LN(1/(1-C32)-1)/0.089))/(1+EXP(VLOOKUP(D32-0.5,coeff!$F$3:$H$74,2,FALSE)+VLOOKUP(D32-0.5,coeff!$F$3:$H$74,3,FALSE)*(LN(1/(1-C32)-1)/0.089))))/2)) ->  | H32: =IF(OR(C32="",D32=""),"",IF(AND((G32*E32-1)>=0.05,K32=1),coeff!$C$5/coeff!$B$5*(G32*E32-1)/(E32-1),0)) ->  | I32: =IF(OR(C32="",D32=""),"",IF(AND((F32*(1-G32)-1)>=0.05,K32=1),coeff!$C$5/coeff!$B$5*(F32*(1-G32)-1)/(F32-1),0)) ->  | K32: 0
A34: Team1 | B34: Team2 | C34: PlayerProb | D34: Line | E34: Odds1 | F34: Odds2 | G34: LineProb | H34: $Bet1 | I34: $Bet2 | J34: Exp Profit | K34: Max
A35: =line!A8 -> 0 | B35: =line!B8 -> 0 | C35: =IF(line!C8="","",line!C8) ->  | D35: 33.5 | E35: 1.92 | F35: 1.99 | G35: =IF(OR(C35="",D35=""),"",IF(ISERROR(VLOOKUP(D35,coeff!$F$3:$H$74,2,FALSE))=FALSE,EXP(VLOOKUP(D35,coeff!$F$3:$H$74,2,FALSE)+VLOOKUP(D35,coeff!$F$3:$H$74,3,FALSE)*(LN(1/(1-C35)-1)/0.089))/(1+EXP(VLOOKUP(D35,coeff!$F$3:$H$74,2,FALSE)+VLOOKUP(D35,coeff!$F$3:$H$74,3,FALSE)*(LN(1/(1-C35)-1)/0.089))),(EXP(VLOOKUP(D35+0.5,coeff!$F$3:$H$74,2,FALSE)+VLOOKUP(D35+0.5,coeff!$F$3:$H$74,3,FALSE)*(LN(1/(1-C35)-1)/0.089))/(1+EXP(VLOOKUP(D35+0.5,coeff!$F$3:$H$74,2,FALSE)+VLOOKUP(D35+0.5,coeff!$F$3:$H$74,3,FALSE)*(LN(1/(1-C35)-1)/0.089)))+EXP(VLOOKUP(D35-0.5,coeff!$F$3:$H$74,2,FALSE)+VLOOKUP(D35-0.5,coeff!$F$3:$H$74,3,FALSE)*(LN(1/(1-C35)-1)/0.089))/(1+EXP(VLOOKUP(D35-0.5,coeff!$F$3:$H$74,2,FALSE)+VLOOKUP(D35-0.5,coeff!$F$3:$H$74,3,FALSE)*(LN(1/(1-C35)-1)/0.089))))/2)) ->  | H35: =IF(OR(C35="",D35=""),"",IF(AND((G35*E35-1)>=0.05,K35=1),coeff!$C$5/coeff!$B$5*(G35*E35-1)/(E35-1),0)) ->  | I35: =IF(OR(C35="",D35=""),"",IF(AND((F35*(1-G35)-1)>=0.05,K35=1),coeff!$C$5/coeff!$B$5*(F35*(1-G35)-1)/(F35-1),0)) ->  | J35: =IF(OR(C35="",D35=""),"",IF((G35*E35-1)>0,1000*(G35*E35-1)/(E35-1)*G35*(E35-1)-(1-G35)*1000*(G35*E35-1)/(E35-1),IF(((1-G35)*F35-1)>0,1000*((1-G35)*F35-1)/(F35-1)*(1-G35)*(F35-1)-G35*1000*((1-G35)*F35-1)/(F35-1),0))) ->  | K35: =IF(J35=MAX($J$35:$J$40),1,0) -> 0
C36: =C35 ->  | D36: 34.5 | E36: 1.89 | F36: 2 | G36: =IF(OR(C36="",D36=""),"",IF(ISERROR(VLOOKUP(D36,coeff!$F$3:$H$74,2,FALSE))=FALSE,EXP(VLOOKUP(D36,coeff!$F$3:$H$74,2,FALSE)+VLOOKUP(D36,coeff!$F$3:$H$74,3,FALSE)*(LN(1/(1-C36)-1)/0.089))/(1+EXP(VLOOKUP(D36,coeff!$F$3:$H$74,2,FALSE)+VLOOKUP(D36,coeff!$F$3:$H$74,3,FALSE)*(LN(1/(1-C36)-1)/0.089))),(EXP(VLOOKUP(D36+0.5,coeff!$F$3:$H$74,2,FALSE)+VLOOKUP(D36+0.5,coeff!$F$3:$H$74,3,FALSE)*(LN(1/(1-C36)-1)/0.089))/(1+EXP(VLOOKUP(D36+0.5,coeff!$F$3:$H$74,2,FALSE)+VLOOKUP(D36+0.5,coeff!$F$3:$H$74,3,FALSE)*(LN(1/(1-C36)-1)/0.089)))+EXP(VLOOKUP(D36-0.5,coeff!$F$3:$H$74,2,FALSE)+VLOOKUP(D36-0.5,coeff!$F$3:$H$74,3,FALSE)*(LN(1/(1-C36)-1)/0.089))/(1+EXP(VLOOKUP(D36-0.5,coeff!$F$3:$H$74,2,FALSE)+VLOOKUP(D36-0.5,coeff!$F$3:$H$74,3,FALSE)*(LN(1/(1-C36)-1)/0.089))))/2)) ->  | H36: =IF(OR(C36="",D36=""),"",IF(AND((G36*E36-1)>=0.05,K36=1),coeff!$C$5/coeff!$B$5*(G36*E36-1)/(E36-1),0)) ->  | I36: =IF(OR(C36="",D36=""),"",IF(AND((F36*(1-G36)-1)>=0.05,K36=1),coeff!$C$5/coeff!$B$5*(F36*(1-G36)-1)/(F36-1),0)) ->  | J36: =IF(OR(C36="",D36=""),"",IF((G36*E36-1)>0,1000*(G36*E36-1)/(E36-1)*G36*(E36-1)-(1-G36)*1000*(G36*E36-1)/(E36-1),IF(((1-G36)*F36-1)>0,1000*((1-G36)*F36-1)/(F36-1)*(1-G36)*(F36-1)-G36*1000*((1-G36)*F36-1)/(F36-1),0))) ->  | K36: =IF(J36=MAX($J$35:$J$40),1,0) -> 0
C37: =C36 ->  | D37: 30.5 | E37: 2.05 | F37: 1.9 | G37: =IF(OR(C37="",D37=""),"",IF(ISERROR(VLOOKUP(D37,coeff!$F$3:$H$74,2,FALSE))=FALSE,EXP(VLOOKUP(D37,coeff!$F$3:$H$74,2,FALSE)+VLOOKUP(D37,coeff!$F$3:$H$74,3,FALSE)*(LN(1/(1-C37)-1)/0.089))/(1+EXP(VLOOKUP(D37,coeff!$F$3:$H$74,2,FALSE)+VLOOKUP(D37,coeff!$F$3:$H$74,3,FALSE)*(LN(1/(1-C37)-1)/0.089))),(EXP(VLOOKUP(D37+0.5,coeff!$F$3:$H$74,2,FALSE)+VLOOKUP(D37+0.5,coeff!$F$3:$H$74,3,FALSE)*(LN(1/(1-C37)-1)/0.089))/(1+EXP(VLOOKUP(D37+0.5,coeff!$F$3:$H$74,2,FALSE)+VLOOKUP(D37+0.5,coeff!$F$3:$H$74,3,FALSE)*(LN(1/(1-C37)-1)/0.089)))+EXP(VLOOKUP(D37-0.5,coeff!$F$3:$H$74,2,FALSE)+VLOOKUP(D37-0.5,coeff!$F$3:$H$74,3,FALSE)*(LN(1/(1-C37)-1)/0.089))/(1+EXP(VLOOKUP(D37-0.5,coeff!$F$3:$H$74,2,FALSE)+VLOOKUP(D37-0.5,coeff!$F$3:$H$74,3,FALSE)*(LN(1/(1-C37)-1)/0.089))))/2)) ->  | H37: =IF(OR(C37="",D37=""),"",IF(AND((G37*E37-1)>=0.05,K37=1),coeff!$C$5/coeff!$B$5*(G37*E37-1)/(E37-1),0)) ->  | I37: =IF(OR(C37="",D37=""),"",IF(AND((F37*(1-G37)-1)>=0.05,K37=1),coeff!$C$5/coeff!$B$5*(F37*(1-G37)-1)/(F37-1),0)) ->  | K37: 0
D38: 31.5 | E38: 2 | F38: 1.91 | G38: =IF(OR(C38="",D38=""),"",IF(ISERROR(VLOOKUP(D38,coeff!$F$3:$H$74,2,FALSE))=FALSE,EXP(VLOOKUP(D38,coeff!$F$3:$H$74,2,FALSE)+VLOOKUP(D38,coeff!$F$3:$H$74,3,FALSE)*(LN(1/(1-C38)-1)/0.089))/(1+EXP(VLOOKUP(D38,coeff!$F$3:$H$74,2,FALSE)+VLOOKUP(D38,coeff!$F$3:$H$74,3,FALSE)*(LN(1/(1-C38)-1)/0.089))),(EXP(VLOOKUP(D38+0.5,coeff!$F$3:$H$74,2,FALSE)+VLOOKUP(D38+0.5,coeff!$F$3:$H$74,3,FALSE)*(LN(1/(1-C38)-1)/0.089))/(1+EXP(VLOOKUP(D38+0.5,coeff!$F$3:$H$74,2,FALSE)+VLOOKUP(D38+0.5,coeff!$F$3:$H$74,3,FALSE)*(LN(1/(1-C38)-1)/0.089)))+EXP(VLOOKUP(D38-0.5,coeff!$F$3:$H$74,2,FALSE)+VLOOKUP(D38-0.5,coeff!$F$3:$H$74,3,FALSE)*(LN(1/(1-C38)-1)/0.089))/(1+EXP(VLOOKUP(D38-0.5,coeff!$F$3:$H$74,2,FALSE)+VLOOKUP(D38-0.5,coeff!$F$3:$H$74,3,FALSE)*(LN(1/(1-C38)-1)/0.089))))/2)) ->  | H38: =IF(OR(C38="",D38=""),"",IF(AND((G38*E38-1)>=0.05,K38=1),coeff!$C$5/coeff!$B$5*(G38*E38-1)/(E38-1),0)) ->  | I38: =IF(OR(C38="",D38=""),"",IF(AND((F38*(1-G38)-1)>=0.05,K38=1),coeff!$C$5/coeff!$B$5*(F38*(1-G38)-1)/(F38-1),0)) ->  | K38: 0
D39: 31.5 | E39: 2 | F39: 1.91 | G39: =IF(OR(C39="",D39=""),"",IF(ISERROR(VLOOKUP(D39,coeff!$F$3:$H$74,2,FALSE))=FALSE,EXP(VLOOKUP(D39,coeff!$F$3:$H$74,2,FALSE)+VLOOKUP(D39,coeff!$F$3:$H$74,3,FALSE)*(LN(1/(1-C39)-1)/0.089))/(1+EXP(VLOOKUP(D39,coeff!$F$3:$H$74,2,FALSE)+VLOOKUP(D39,coeff!$F$3:$H$74,3,FALSE)*(LN(1/(1-C39)-1)/0.089))),(EXP(VLOOKUP(D39+0.5,coeff!$F$3:$H$74,2,FALSE)+VLOOKUP(D39+0.5,coeff!$F$3:$H$74,3,FALSE)*(LN(1/(1-C39)-1)/0.089))/(1+EXP(VLOOKUP(D39+0.5,coeff!$F$3:$H$74,2,FALSE)+VLOOKUP(D39+0.5,coeff!$F$3:$H$74,3,FALSE)*(LN(1/(1-C39)-1)/0.089)))+EXP(VLOOKUP(D39-0.5,coeff!$F$3:$H$74,2,FALSE)+VLOOKUP(D39-0.5,coeff!$F$3:$H$74,3,FALSE)*(LN(1/(1-C39)-1)/0.089))/(1+EXP(VLOOKUP(D39-0.5,coeff!$F$3:$H$74,2,FALSE)+VLOOKUP(D39-0.5,coeff!$F$3:$H$74,3,FALSE)*(LN(1/(1-C39)-1)/0.089))))/2)) ->  | H39: =IF(OR(C39="",D39=""),"",IF(AND((G39*E39-1)>=0.05,K39=1),coeff!$C$5/coeff!$B$5*(G39*E39-1)/(E39-1),0)) ->  | I39: =IF(OR(C39="",D39=""),"",IF(AND((F39*(1-G39)-1)>=0.05,K39=1),coeff!$C$5/coeff!$B$5*(F39*(1-G39)-1)/(F39-1),0)) ->  | K39: 0
D40: 31.5 | E40: 2 | F40: 1.91 | G40: =IF(OR(C40="",D40=""),"",IF(ISERROR(VLOOKUP(D40,coeff!$F$3:$H$74,2,FALSE))=FALSE,EXP(VLOOKUP(D40,coeff!$F$3:$H$74,2,FALSE)+VLOOKUP(D40,coeff!$F$3:$H$74,3,FALSE)*(LN(1/(1-C40)-1)/0.089))/(1+EXP(VLOOKUP(D40,coeff!$F$3:$H$74,2,FALSE)+VLOOKUP(D40,coeff!$F$3:$H$74,3,FALSE)*(LN(1/(1-C40)-1)/0.089))),(EXP(VLOOKUP(D40+0.5,coeff!$F$3:$H$74,2,FALSE)+VLOOKUP(D40+0.5,coeff!$F$3:$H$74,3,FALSE)*(LN(1/(1-C40)-1)/0.089))/(1+EXP(VLOOKUP(D40+0.5,coeff!$F$3:$H$74,2,FALSE)+VLOOKUP(D40+0.5,coeff!$F$3:$H$74,3,FALSE)*(LN(1/(1-C40)-1)/0.089)))+EXP(VLOOKUP(D40-0.5,coeff!$F$3:$H$74,2,FALSE)+VLOOKUP(D40-0.5,coeff!$F$3:$H$74,3,FALSE)*(LN(1/(1-C40)-1)/0.089))/(1+EXP(VLOOKUP(D40-0.5,coeff!$F$3:$H$74,2,FALSE)+VLOOKUP(D40-0.5,coeff!$F$3:$H$74,3,FALSE)*(LN(1/(1-C40)-1)/0.089))))/2)) ->  | H40: =IF(OR(C40="",D40=""),"",IF(AND((G40*E40-1)>=0.05,K40=1),coeff!$C$5/coeff!$B$5*(G40*E40-1)/(E40-1),0)) ->  | I40: =IF(OR(C40="",D40=""),"",IF(AND((F40*(1-G40)-1)>=0.05,K40=1),coeff!$C$5/coeff!$B$5*(F40*(1-G40)-1)/(F40-1),0)) ->  | K40: 0
A42: Team1 | B42: Team2 | C42: PlayerProb | D42: Line | E42: Odds1 | F42: Odds2 | G42: LineProb | H42: $Bet1 | I42: $Bet2 | J42: Exp Profit | K42: Max
A43: =line!A9 -> 0 | B43: =line!B9 -> 0 | C43: =IF(line!C9="","",line!C9) ->  | D43: 33.5 | E43: 1.92 | F43: 1.99 | G43: =IF(OR(C43="",D43=""),"",IF(ISERROR(VLOOKUP(D43,coeff!$F$3:$H$74,2,FALSE))=FALSE,EXP(VLOOKUP(D43,coeff!$F$3:$H$74,2,FALSE)+VLOOKUP(D43,coeff!$F$3:$H$74,3,FALSE)*(LN(1/(1-C43)-1)/0.089))/(1+EXP(VLOOKUP(D43,coeff!$F$3:$H$74,2,FALSE)+VLOOKUP(D43,coeff!$F$3:$H$74,3,FALSE)*(LN(1/(1-C43)-1)/0.089))),(EXP(VLOOKUP(D43+0.5,coeff!$F$3:$H$74,2,FALSE)+VLOOKUP(D43+0.5,coeff!$F$3:$H$74,3,FALSE)*(LN(1/(1-C43)-1)/0.089))/(1+EXP(VLOOKUP(D43+0.5,coeff!$F$3:$H$74,2,FALSE)+VLOOKUP(D43+0.5,coeff!$F$3:$H$74,3,FALSE)*(LN(1/(1-C43)-1)/0.089)))+EXP(VLOOKUP(D43-0.5,coeff!$F$3:$H$74,2,FALSE)+VLOOKUP(D43-0.5,coeff!$F$3:$H$74,3,FALSE)*(LN(1/(1-C43)-1)/0.089))/(1+EXP(VLOOKUP(D43-0.5,coeff!$F$3:$H$74,2,FALSE)+VLOOKUP(D43-0.5,coeff!$F$3:$H$74,3,FALSE)*(LN(1/(1-C43)-1)/0.089))))/2)) ->  | H43: =IF(OR(C43="",D43=""),"",IF(AND((G43*E43-1)>=0.05,K43=1),coeff!$C$5/coeff!$B$5*(G43*E43-1)/(E43-1),0)) ->  | I43: =IF(OR(C43="",D43=""),"",IF(AND((F43*(1-G43)-1)>=0.05,K43=1),coeff!$C$5/coeff!$B$5*(F43*(1-G43)-1)/(F43-1),0)) ->  | J43: =IF(OR(C43="",D43=""),"",IF((G43*E43-1)>0,1000*(G43*E43-1)/(E43-1)*G43*(E43-1)-(1-G43)*1000*(G43*E43-1)/(E43-1),IF(((1-G43)*F43-1)>0,1000*((1-G43)*F43-1)/(F43-1)*(1-G43)*(F43-1)-G43*1000*((1-G43)*F43-1)/(F43-1),0))) ->  | K43: =IF(J43=MAX($J$43:$J$48),1,0) -> 0
C44: =C43 ->  | D44: 34.5 | E44: 1.89 | F44: 2 | G44: =IF(OR(C44="",D44=""),"",IF(ISERROR(VLOOKUP(D44,coeff!$F$3:$H$74,2,FALSE))=FALSE,EXP(VLOOKUP(D44,coeff!$F$3:$H$74,2,FALSE)+VLOOKUP(D44,coeff!$F$3:$H$74,3,FALSE)*(LN(1/(1-C44)-1)/0.089))/(1+EXP(VLOOKUP(D44,coeff!$F$3:$H$74,2,FALSE)+VLOOKUP(D44,coeff!$F$3:$H$74,3,FALSE)*(LN(1/(1-C44)-1)/0.089))),(EXP(VLOOKUP(D44+0.5,coeff!$F$3:$H$74,2,FALSE)+VLOOKUP(D44+0.5,coeff!$F$3:$H$74,3,FALSE)*(LN(1/(1-C44)-1)/0.089))/(1+EXP(VLOOKUP(D44+0.5,coeff!$F$3:$H$74,2,FALSE)+VLOOKUP(D44+0.5,coeff!$F$3:$H$74,3,FALSE)*(LN(1/(1-C44)-1)/0.089)))+EXP(VLOOKUP(D44-0.5,coeff!$F$3:$H$74,2,FALSE)+VLOOKUP(D44-0.5,coeff!$F$3:$H$74,3,FALSE)*(LN(1/(1-C44)-1)/0.089))/(1+EXP(VLOOKUP(D44-0.5,coeff!$F$3:$H$74,2,FALSE)+VLOOKUP(D44-0.5,coeff!$F$3:$H$74,3,FALSE)*(LN(1/(1-C44)-1)/0.089))))/2)) ->  | H44: =IF(OR(C44="",D44=""),"",IF(AND((G44*E44-1)>=0.05,K44=1),coeff!$C$5/coeff!$B$5*(G44*E44-1)/(E44-1),0)) ->  | I44: =IF(OR(C44="",D44=""),"",IF(AND((F44*(1-G44)-1)>=0.05,K44=1),coeff!$C$5/coeff!$B$5*(F44*(1-G44)-1)/(F44-1),0)) ->  | J44: =IF(OR(C44="",D44=""),"",IF((G44*E44-1)>0,1000*(G44*E44-1)/(E44-1)*G44*(E44-1)-(1-G44)*1000*(G44*E44-1)/(E44-1),IF(((1-G44)*F44-1)>0,1000*((1-G44)*F44-1)/(F44-1)*(1-G44)*(F44-1)-G44*1000*((1-G44)*F44-1)/(F44-1),0))) ->  | K44: =IF(J44=MAX($J$43:$J$48),1,0) -> 0
C45: =C44 ->  | D45: 30.5 | E45: 2.05 | F45: 1.9 | G45: =IF(OR(C45="",D45=""),"",IF(ISERROR(VLOOKUP(D45,coeff!$F$3:$H$74,2,FALSE))=FALSE,EXP(VLOOKUP(D45,coeff!$F$3:$H$74,2,FALSE)+VLOOKUP(D45,coeff!$F$3:$H$74,3,FALSE)*(LN(1/(1-C45)-1)/0.089))/(1+EXP(VLOOKUP(D45,coeff!$F$3:$H$74,2,FALSE)+VLOOKUP(D45,coeff!$F$3:$H$74,3,FALSE)*(LN(1/(1-C45)-1)/0.089))),(EXP(VLOOKUP(D45+0.5,coeff!$F$3:$H$74,2,FALSE)+VLOOKUP(D45+0.5,coeff!$F$3:$H$74,3,FALSE)*(LN(1/(1-C45)-1)/0.089))/(1+EXP(VLOOKUP(D45+0.5,coeff!$F$3:$H$74,2,FALSE)+VLOOKUP(D45+0.5,coeff!$F$3:$H$74,3,FALSE)*(LN(1/(1-C45)-1)/0.089)))+EXP(VLOOKUP(D45-0.5,coeff!$F$3:$H$74,2,FALSE)+VLOOKUP(D45-0.5,coeff!$F$3:$H$74,3,FALSE)*(LN(1/(1-C45)-1)/0.089))/(1+EXP(VLOOKUP(D45-0.5,coeff!$F$3:$H$74,2,FALSE)+VLOOKUP(D45-0.5,coeff!$F$3:$H$74,3,FALSE)*(LN(1/(1-C45)-1)/0.089))))/2)) ->  | H45: =IF(OR(C45="",D45=""),"",IF(AND((G45*E45-1)>=0.05,K45=1),coeff!$C$5/coeff!$B$5*(G45*E45-1)/(E45-1),0)) ->  | I45: =IF(OR(C45="",D45=""),"",IF(AND((F45*(1-G45)-1)>=0.05,K45=1),coeff!$C$5/coeff!$B$5*(F45*(1-G45)-1)/(F45-1),0)) ->  | K45: 0
D46: 31.5 | E46: 2 | F46: 1.91 | G46: =IF(OR(C46="",D46=""),"",IF(ISERROR(VLOOKUP(D46,coeff!$F$3:$H$74,2,FALSE))=FALSE,EXP(VLOOKUP(D46,coeff!$F$3:$H$74,2,FALSE)+VLOOKUP(D46,coeff!$F$3:$H$74,3,FALSE)*(LN(1/(1-C46)-1)/0.089))/(1+EXP(VLOOKUP(D46,coeff!$F$3:$H$74,2,FALSE)+VLOOKUP(D46,coeff!$F$3:$H$74,3,FALSE)*(LN(1/(1-C46)-1)/0.089))),(EXP(VLOOKUP(D46+0.5,coeff!$F$3:$H$74,2,FALSE)+VLOOKUP(D46+0.5,coeff!$F$3:$H$74,3,FALSE)*(LN(1/(1-C46)-1)/0.089))/(1+EXP(VLOOKUP(D46+0.5,coeff!$F$3:$H$74,2,FALSE)+VLOOKUP(D46+0.5,coeff!$F$3:$H$74,3,FALSE)*(LN(1/(1-C46)-1)/0.089)))+EXP(VLOOKUP(D46-0.5,coeff!$F$3:$H$74,2,FALSE)+VLOOKUP(D46-0.5,coeff!$F$3:$H$74,3,FALSE)*(LN(1/(1-C46)-1)/0.089))/(1+EXP(VLOOKUP(D46-0.5,coeff!$F$3:$H$74,2,FALSE)+VLOOKUP(D46-0.5,coeff!$F$3:$H$74,3,FALSE)*(LN(1/(1-C46)-1)/0.089))))/2)) ->  | H46: =IF(OR(C46="",D46=""),"",IF(AND((G46*E46-1)>=0.05,K46=1),coeff!$C$5/coeff!$B$5*(G46*E46-1)/(E46-1),0)) ->  | I46: =IF(OR(C46="",D46=""),"",IF(AND((F46*(1-G46)-1)>=0.05,K46=1),coeff!$C$5/coeff!$B$5*(F46*(1-G46)-1)/(F46-1),0)) ->  | K46: 0
D47: 31.5 | E47: 2 | F47: 1.91 | G47: =IF(OR(C47="",D47=""),"",IF(ISERROR(VLOOKUP(D47,coeff!$F$3:$H$74,2,FALSE))=FALSE,EXP(VLOOKUP(D47,coeff!$F$3:$H$74,2,FALSE)+VLOOKUP(D47,coeff!$F$3:$H$74,3,FALSE)*(LN(1/(1-C47)-1)/0.089))/(1+EXP(VLOOKUP(D47,coeff!$F$3:$H$74,2,FALSE)+VLOOKUP(D47,coeff!$F$3:$H$74,3,FALSE)*(LN(1/(1-C47)-1)/0.089))),(EXP(VLOOKUP(D47+0.5,coeff!$F$3:$H$74,2,FALSE)+VLOOKUP(D47+0.5,coeff!$F$3:$H$74,3,FALSE)*(LN(1/(1-C47)-1)/0.089))/(1+EXP(VLOOKUP(D47+0.5,coeff!$F$3:$H$74,2,FALSE)+VLOOKUP(D47+0.5,coeff!$F$3:$H$74,3,FALSE)*(LN(1/(1-C47)-1)/0.089)))+EXP(VLOOKUP(D47-0.5,coeff!$F$3:$H$74,2,FALSE)+VLOOKUP(D47-0.5,coeff!$F$3:$H$74,3,FALSE)*(LN(1/(1-C47)-1)/0.089))/(1+EXP(VLOOKUP(D47-0.5,coeff!$F$3:$H$74,2,FALSE)+VLOOKUP(D47-0.5,coeff!$F$3:$H$74,3,FALSE)*(LN(1/(1-C47)-1)/0.089))))/2)) ->  | H47: =IF(OR(C47="",D47=""),"",IF(AND((G47*E47-1)>=0.05,K47=1),coeff!$C$5/coeff!$B$5*(G47*E47-1)/(E47-1),0)) ->  | I47: =IF(OR(C47="",D47=""),"",IF(AND((F47*(1-G47)-1)>=0.05,K47=1),coeff!$C$5/coeff!$B$5*(F47*(1-G47)-1)/(F47-1),0)) ->  | K47: 0
D48: 31.5 | E48: 2 | F48: 1.91 | G48: =IF(OR(C48="",D48=""),"",IF(ISERROR(VLOOKUP(D48,coeff!$F$3:$H$74,2,FALSE))=FALSE,EXP(VLOOKUP(D48,coeff!$F$3:$H$74,2,FALSE)+VLOOKUP(D48,coeff!$F$3:$H$74,3,FALSE)*(LN(1/(1-C48)-1)/0.089))/(1+EXP(VLOOKUP(D48,coeff!$F$3:$H$74,2,FALSE)+VLOOKUP(D48,coeff!$F$3:$H$74,3,FALSE)*(LN(1/(1-C48)-1)/0.089))),(EXP(VLOOKUP(D48+0.5,coeff!$F$3:$H$74,2,FALSE)+VLOOKUP(D48+0.5,coeff!$F$3:$H$74,3,FALSE)*(LN(1/(1-C48)-1)/0.089))/(1+EXP(VLOOKUP(D48+0.5,coeff!$F$3:$H$74,2,FALSE)+VLOOKUP(D48+0.5,coeff!$F$3:$H$74,3,FALSE)*(LN(1/(1-C48)-1)/0.089)))+EXP(VLOOKUP(D48-0.5,coeff!$F$3:$H$74,2,FALSE)+VLOOKUP(D48-0.5,coeff!$F$3:$H$74,3,FALSE)*(LN(1/(1-C48)-1)/0.089))/(1+EXP(VLOOKUP(D48-0.5,coeff!$F$3:$H$74,2,FALSE)+VLOOKUP(D48-0.5,coeff!$F$3:$H$74,3,FALSE)*(LN(1/(1-C48)-1)/0.089))))/2)) ->  | H48: =IF(OR(C48="",D48=""),"",IF(AND((G48*E48-1)>=0.05,K48=1),coeff!$C$5/coeff!$B$5*(G48*E48-1)/(E48-1),0)) ->  | I48: =IF(OR(C48="",D48=""),"",IF(AND((F48*(1-G48)-1)>=0.05,K48=1),coeff!$C$5/coeff!$B$5*(F48*(1-G48)-1)/(F48-1),0)) ->  | K48: 0
A50: Team1 | B50: Team2 | C50: PlayerProb | D50: Line | E50: Odds1 | F50: Odds2 | G50: LineProb | H50: $Bet1 | I50: $Bet2 | J50: Exp Profit | K50: Max
A51: =line!A10 -> 0 | B51: =line!B10 -> 0 | C51: =IF(line!C10="","",line!C10) ->  | D51: 33.5 | E51: 1.92 | F51: 1.99 | G51: =IF(OR(C51="",D51=""),"",IF(ISERROR(VLOOKUP(D51,coeff!$F$3:$H$74,2,FALSE))=FALSE,EXP(VLOOKUP(D51,coeff!$F$3:$H$74,2,FALSE)+VLOOKUP(D51,coeff!$F$3:$H$74,3,FALSE)*(LN(1/(1-C51)-1)/0.089))/(1+EXP(VLOOKUP(D51,coeff!$F$3:$H$74,2,FALSE)+VLOOKUP(D51,coeff!$F$3:$H$74,3,FALSE)*(LN(1/(1-C51)-1)/0.089))),(EXP(VLOOKUP(D51+0.5,coeff!$F$3:$H$74,2,FALSE)+VLOOKUP(D51+0.5,coeff!$F$3:$H$74,3,FALSE)*(LN(1/(1-C51)-1)/0.089))/(1+EXP(VLOOKUP(D51+0.5,coeff!$F$3:$H$74,2,FALSE)+VLOOKUP(D51+0.5,coeff!$F$3:$H$74,3,FALSE)*(LN(1/(1-C51)-1)/0.089)))+EXP(VLOOKUP(D51-0.5,coeff!$F$3:$H$74,2,FALSE)+VLOOKUP(D51-0.5,coeff!$F$3:$H$74,3,FALSE)*(LN(1/(1-C51)-1)/0.089))/(1+EXP(VLOOKUP(D51-0.5,coeff!$F$3:$H$74,2,FALSE)+VLOOKUP(D51-0.5,coeff!$F$3:$H$74,3,FALSE)*(LN(1/(1-C51)-1)/0.089))))/2)) ->  | H51: =IF(OR(C51="",D51=""),"",IF(AND((G51*E51-1)>=0.05,K51=1),coeff!$C$5/coeff!$B$5*(G51*E51-1)/(E51-1),0)) ->  | I51: =IF(OR(C51="",D51=""),"",IF(AND((F51*(1-G51)-1)>=0.05,K51=1),coeff!$C$5/coeff!$B$5*(F51*(1-G51)-1)/(F51-1),0)) ->  | J51: =IF(OR(C51="",D51=""),"",IF((G51*E51-1)>0,1000*(G51*E51-1)/(E51-1)*G51*(E51-1)-(1-G51)*1000*(G51*E51-1)/(E51-1),IF(((1-G51)*F51-1)>0,1000*((1-G51)*F51-1)/(F51-1)*(1-G51)*(F51-1)-G51*1000*((1-G51)*F51-1)/(F51-1),0))) ->  | K51: =IF(J51=MAX($J$51:$J$56),1,0) -> 0
C52: =C51 ->  | D52: 34.5 | E52: 1.89 | F52: 2 | G52: =IF(OR(C52="",D52=""),"",IF(ISERROR(VLOOKUP(D52,coeff!$F$3:$H$74,2,FALSE))=FALSE,EXP(VLOOKUP(D52,coeff!$F$3:$H$74,2,FALSE)+VLOOKUP(D52,coeff!$F$3:$H$74,3,FALSE)*(LN(1/(1-C52)-1)/0.089))/(1+EXP(VLOOKUP(D52,coeff!$F$3:$H$74,2,FALSE)+VLOOKUP(D52,coeff!$F$3:$H$74,3,FALSE)*(LN(1/(1-C52)-1)/0.089))),(EXP(VLOOKUP(D52+0.5,coeff!$F$3:$H$74,2,FALSE)+VLOOKUP(D52+0.5,coeff!$F$3:$H$74,3,FALSE)*(LN(1/(1-C52)-1)/0.089))/(1+EXP(VLOOKUP(D52+0.5,coeff!$F$3:$H$74,2,FALSE)+VLOOKUP(D52+0.5,coeff!$F$3:$H$74,3,FALSE)*(LN(1/(1-C52)-1)/0.089)))+EXP(VLOOKUP(D52-0.5,coeff!$F$3:$H$74,2,FALSE)+VLOOKUP(D52-0.5,coeff!$F$3:$H$74,3,FALSE)*(LN(1/(1-C52)-1)/0.089))/(1+EXP(VLOOKUP(D52-0.5,coeff!$F$3:$H$74,2,FALSE)+VLOOKUP(D52-0.5,coeff!$F$3:$H$74,3,FALSE)*(LN(1/(1-C52)-1)/0.089))))/2)) ->  | H52: =IF(OR(C52="",D52=""),"",IF(AND((G52*E52-1)>=0.05,K52=1),coeff!$C$5/coeff!$B$5*(G52*E52-1)/(E52-1),0)) ->  | I52: =IF(OR(C52="",D52=""),"",IF(AND((F52*(1-G52)-1)>=0.05,K52=1),coeff!$C$5/coeff!$B$5*(F52*(1-G52)-1)/(F52-1),0)) ->  | J52: =IF(OR(C52="",D52=""),"",IF((G52*E52-1)>0,1000*(G52*E52-1)/(E52-1)*G52*(E52-1)-(1-G52)*1000*(G52*E52-1)/(E52-1),IF(((1-G52)*F52-1)>0,1000*((1-G52)*F52-1)/(F52-1)*(1-G52)*(F52-1)-G52*1000*((1-G52)*F52-1)/(F52-1),0))) ->  | K52: =IF(J52=MAX($J$51:$J$56),1,0) -> 0
C53: =C52 ->  | D53: 30.5 | E53: 2.05 | F53: 1.9 | G53: =IF(OR(C53="",D53=""),"",IF(ISERROR(VLOOKUP(D53,coeff!$F$3:$H$74,2,FALSE))=FALSE,EXP(VLOOKUP(D53,coeff!$F$3:$H$74,2,FALSE)+VLOOKUP(D53,coeff!$F$3:$H$74,3,FALSE)*(LN(1/(1-C53)-1)/0.089))/(1+EXP(VLOOKUP(D53,coeff!$F$3:$H$74,2,FALSE)+VLOOKUP(D53,coeff!$F$3:$H$74,3,FALSE)*(LN(1/(1-C53)-1)/0.089))),(EXP(VLOOKUP(D53+0.5,coeff!$F$3:$H$74,2,FALSE)+VLOOKUP(D53+0.5,coeff!$F$3:$H$74,3,FALSE)*(LN(1/(1-C53)-1)/0.089))/(1+EXP(VLOOKUP(D53+0.5,coeff!$F$3:$H$74,2,FALSE)+VLOOKUP(D53+0.5,coeff!$F$3:$H$74,3,FALSE)*(LN(1/(1-C53)-1)/0.089)))+EXP(VLOOKUP(D53-0.5,coeff!$F$3:$H$74,2,FALSE)+VLOOKUP(D53-0.5,coeff!$F$3:$H$74,3,FALSE)*(LN(1/(1-C53)-1)/0.089))/(1+EXP(VLOOKUP(D53-0.5,coeff!$F$3:$H$74,2,FALSE)+VLOOKUP(D53-0.5,coeff!$F$3:$H$74,3,FALSE)*(LN(1/(1-C53)-1)/0.089))))/2)) ->  | H53: =IF(OR(C53="",D53=""),"",IF(AND((G53*E53-1)>=0.05,K53=1),coeff!$C$5/coeff!$B$5*(G53*E53-1)/(E53-1),0)) ->  | I53: =IF(OR(C53="",D53=""),"",IF(AND((F53*(1-G53)-1)>=0.05,K53=1),coeff!$C$5/coeff!$B$5*(F53*(1-G53)-1)/(F53-1),0)) ->  | K53: 0
D54: 31.5 | E54: 2 | F54: 1.91 | G54: =IF(OR(C54="",D54=""),"",IF(ISERROR(VLOOKUP(D54,coeff!$F$3:$H$74,2,FALSE))=FALSE,EXP(VLOOKUP(D54,coeff!$F$3:$H$74,2,FALSE)+VLOOKUP(D54,coeff!$F$3:$H$74,3,FALSE)*(LN(1/(1-C54)-1)/0.089))/(1+EXP(VLOOKUP(D54,coeff!$F$3:$H$74,2,FALSE)+VLOOKUP(D54,coeff!$F$3:$H$74,3,FALSE)*(LN(1/(1-C54)-1)/0.089))),(EXP(VLOOKUP(D54+0.5,coeff!$F$3:$H$74,2,FALSE)+VLOOKUP(D54+0.5,coeff!$F$3:$H$74,3,FALSE)*(LN(1/(1-C54)-1)/0.089))/(1+EXP(VLOOKUP(D54+0.5,coeff!$F$3:$H$74,2,FALSE)+VLOOKUP(D54+0.5,coeff!$F$3:$H$74,3,FALSE)*(LN(1/(1-C54)-1)/0.089)))+EXP(VLOOKUP(D54-0.5,coeff!$F$3:$H$74,2,FALSE)+VLOOKUP(D54-0.5,coeff!$F$3:$H$74,3,FALSE)*(LN(1/(1-C54)-1)/0.089))/(1+EXP(VLOOKUP(D54-0.5,coeff!$F$3:$H$74,2,FALSE)+VLOOKUP(D54-0.5,coeff!$F$3:$H$74,3,FALSE)*(LN(1/(1-C54)-1)/0.089))))/2)) ->  | H54: =IF(OR(C54="",D54=""),"",IF(AND((G54*E54-1)>=0.05,K54=1),coeff!$C$5/coeff!$B$5*(G54*E54-1)/(E54-1),0)) ->  | I54: =IF(OR(C54="",D54=""),"",IF(AND((F54*(1-G54)-1)>=0.05,K54=1),coeff!$C$5/coeff!$B$5*(F54*(1-G54)-1)/(F54-1),0)) ->  | K54: 0
D55: 31.5 | E55: 2 | F55: 1.91 | G55: =IF(OR(C55="",D55=""),"",IF(ISERROR(VLOOKUP(D55,coeff!$F$3:$H$74,2,FALSE))=FALSE,EXP(VLOOKUP(D55,coeff!$F$3:$H$74,2,FALSE)+VLOOKUP(D55,coeff!$F$3:$H$74,3,FALSE)*(LN(1/(1-C55)-1)/0.089))/(1+EXP(VLOOKUP(D55,coeff!$F$3:$H$74,2,FALSE)+VLOOKUP(D55,coeff!$F$3:$H$74,3,FALSE)*(LN(1/(1-C55)-1)/0.089))),(EXP(VLOOKUP(D55+0.5,coeff!$F$3:$H$74,2,FALSE)+VLOOKUP(D55+0.5,coeff!$F$3:$H$74,3,FALSE)*(LN(1/(1-C55)-1)/0.089))/(1+EXP(VLOOKUP(D55+0.5,coeff!$F$3:$H$74,2,FALSE)+VLOOKUP(D55+0.5,coeff!$F$3:$H$74,3,FALSE)*(LN(1/(1-C55)-1)/0.089)))+EXP(VLOOKUP(D55-0.5,coeff!$F$3:$H$74,2,FALSE)+VLOOKUP(D55-0.5,coeff!$F$3:$H$74,3,FALSE)*(LN(1/(1-C55)-1)/0.089))/(1+EXP(VLOOKUP(D55-0.5,coeff!$F$3:$H$74,2,FALSE)+VLOOKUP(D55-0.5,coeff!$F$3:$H$74,3,FALSE)*(LN(1/(1-C55)-1)/0.089))))/2)) ->  | H55: =IF(OR(C55="",D55=""),"",IF(AND((G55*E55-1)>=0.05,K55=1),coeff!$C$5/coeff!$B$5*(G55*E55-1)/(E55-1),0)) ->  | I55: =IF(OR(C55="",D55=""),"",IF(AND((F55*(1-G55)-1)>=0.05,K55=1),coeff!$C$5/coeff!$B$5*(F55*(1-G55)-1)/(F55-1),0)) ->  | K55: 0
D56: 31.5 | E56: 2 | F56: 1.91 | G56: =IF(OR(C56="",D56=""),"",IF(ISERROR(VLOOKUP(D56,coeff!$F$3:$H$74,2,FALSE))=FALSE,EXP(VLOOKUP(D56,coeff!$F$3:$H$74,2,FALSE)+VLOOKUP(D56,coeff!$F$3:$H$74,3,FALSE)*(LN(1/(1-C56)-1)/0.089))/(1+EXP(VLOOKUP(D56,coeff!$F$3:$H$74,2,FALSE)+VLOOKUP(D56,coeff!$F$3:$H$74,3,FALSE)*(LN(1/(1-C56)-1)/0.089))),(EXP(VLOOKUP(D56+0.5,coeff!$F$3:$H$74,2,FALSE)+VLOOKUP(D56+0.5,coeff!$F$3:$H$74,3,FALSE)*(LN(1/(1-C56)-1)/0.089))/(1+EXP(VLOOKUP(D56+0.5,coeff!$F$3:$H$74,2,FALSE)+VLOOKUP(D56+0.5,coeff!$F$3:$H$74,3,FALSE)*(LN(1/(1-C56)-1)/0.089)))+EXP(VLOOKUP(D56-0.5,coeff!$F$3:$H$74,2,FALSE)+VLOOKUP(D56-0.5,coeff!$F$3:$H$74,3,FALSE)*(LN(1/(1-C56)-1)/0.089))/(1+EXP(VLOOKUP(D56-0.5,coeff!$F$3:$H$74,2,FALSE)+VLOOKUP(D56-0.5,coeff!$F$3:$H$74,3,FALSE)*(LN(1/(1-C56)-1)/0.089))))/2)) ->  | H56: =IF(OR(C56="",D56=""),"",IF(AND((G56*E56-1)>=0.05,K56=1),coeff!$C$5/coeff!$B$5*(G56*E56-1)/(E56-1),0)) ->  | I56: =IF(OR(C56="",D56=""),"",IF(AND((F56*(1-G56)-1)>=0.05,K56=1),coeff!$C$5/coeff!$B$5*(F56*(1-G56)-1)/(F56-1),0)) ->  | K56: 0
A58: Team1 | B58: Team2 | C58: PlayerProb | D58: Line | E58: Odds1 | F58: Odds2 | G58: LineProb | H58: $Bet1 | I58: $Bet2 | J58: Exp Profit | K58: Max
A59: =line!A11 -> 0 | B59: =line!B11 -> 0 | C59: =IF(line!C11="","",line!C11) ->  | D59: 33.5 | E59: 1.92 | F59: 1.99 | G59: =IF(OR(C59="",D59=""),"",IF(ISERROR(VLOOKUP(D59,coeff!$F$3:$H$74,2,FALSE))=FALSE,EXP(VLOOKUP(D59,coeff!$F$3:$H$74,2,FALSE)+VLOOKUP(D59,coeff!$F$3:$H$74,3,FALSE)*(LN(1/(1-C59)-1)/0.089))/(1+EXP(VLOOKUP(D59,coeff!$F$3:$H$74,2,FALSE)+VLOOKUP(D59,coeff!$F$3:$H$74,3,FALSE)*(LN(1/(1-C59)-1)/0.089))),(EXP(VLOOKUP(D59+0.5,coeff!$F$3:$H$74,2,FALSE)+VLOOKUP(D59+0.5,coeff!$F$3:$H$74,3,FALSE)*(LN(1/(1-C59)-1)/0.089))/(1+EXP(VLOOKUP(D59+0.5,coeff!$F$3:$H$74,2,FALSE)+VLOOKUP(D59+0.5,coeff!$F$3:$H$74,3,FALSE)*(LN(1/(1-C59)-1)/0.089)))+EXP(VLOOKUP(D59-0.5,coeff!$F$3:$H$74,2,FALSE)+VLOOKUP(D59-0.5,coeff!$F$3:$H$74,3,FALSE)*(LN(1/(1-C59)-1)/0.089))/(1+EXP(VLOOKUP(D59-0.5,coeff!$F$3:$H$74,2,FALSE)+VLOOKUP(D59-0.5,coeff!$F$3:$H$74,3,FALSE)*(LN(1/(1-C59)-1)/0.089))))/2)) ->  | H59: =IF(OR(C59="",D59=""),"",IF(AND((G59*E59-1)>=0.05,K59=1),coeff!$C$5/coeff!$B$5*(G59*E59-1)/(E59-1),0)) ->  | I59: =IF(OR(C59="",D59=""),"",IF(AND((F59*(1-G59)-1)>=0.05,K59=1),coeff!$C$5/coeff!$B$5*(F59*(1-G59)-1)/(F59-1),0)) ->  | J59: =IF(OR(C59="",D59=""),"",IF((G59*E59-1)>0,1000*(G59*E59-1)/(E59-1)*G59*(E59-1)-(1-G59)*1000*(G59*E59-1)/(E59-1),IF(((1-G59)*F59-1)>0,1000*((1-G59)*F59-1)/(F59-1)*(1-G59)*(F59-1)-G59*1000*((1-G59)*F59-1)/(F59-1),0))) ->  | K59: =IF(J59=MAX($J$59:$J$64),1,0) -> 0
C60: =C59 ->  | D60: 34.5 | E60: 1.89 | F60: 2 | G60: =IF(OR(C60="",D60=""),"",IF(ISERROR(VLOOKUP(D60,coeff!$F$3:$H$74,2,FALSE))=FALSE,EXP(VLOOKUP(D60,coeff!$F$3:$H$74,2,FALSE)+VLOOKUP(D60,coeff!$F$3:$H$74,3,FALSE)*(LN(1/(1-C60)-1)/0.089))/(1+EXP(VLOOKUP(D60,coeff!$F$3:$H$74,2,FALSE)+VLOOKUP(D60,coeff!$F$3:$H$74,3,FALSE)*(LN(1/(1-C60)-1)/0.089))),(EXP(VLOOKUP(D60+0.5,coeff!$F$3:$H$74,2,FALSE)+VLOOKUP(D60+0.5,coeff!$F$3:$H$74,3,FALSE)*(LN(1/(1-C60)-1)/0.089))/(1+EXP(VLOOKUP(D60+0.5,coeff!$F$3:$H$74,2,FALSE)+VLOOKUP(D60+0.5,coeff!$F$3:$H$74,3,FALSE)*(LN(1/(1-C60)-1)/0.089)))+EXP(VLOOKUP(D60-0.5,coeff!$F$3:$H$74,2,FALSE)+VLOOKUP(D60-0.5,coeff!$F$3:$H$74,3,FALSE)*(LN(1/(1-C60)-1)/0.089))/(1+EXP(VLOOKUP(D60-0.5,coeff!$F$3:$H$74,2,FALSE)+VLOOKUP(D60-0.5,coeff!$F$3:$H$74,3,FALSE)*(LN(1/(1-C60)-1)/0.089))))/2)) ->  | H60: =IF(OR(C60="",D60=""),"",IF(AND((G60*E60-1)>=0.05,K60=1),coeff!$C$5/coeff!$B$5*(G60*E60-1)/(E60-1),0)) ->  | I60: =IF(OR(C60="",D60=""),"",IF(AND((F60*(1-G60)-1)>=0.05,K60=1),coeff!$C$5/coeff!$B$5*(F60*(1-G60)-1)/(F60-1),0)) ->  | J60: =IF(OR(C60="",D60=""),"",IF((G60*E60-1)>0,1000*(G60*E60-1)/(E60-1)*G60*(E60-1)-(1-G60)*1000*(G60*E60-1)/(E60-1),IF(((1-G60)*F60-1)>0,1000*((1-G60)*F60-1)/(F60-1)*(1-G60)*(F60-1)-G60*1000*((1-G60)*F60-1)/(F60-1),0))) ->  | K60: =IF(J60=MAX($J$59:$J$64),1,0) -> 0
C61: =C60 ->  | D61: 30.5 | E61: 2.05 | F61: 1.9 | G61: =IF(OR(C61="",D61=""),"",IF(ISERROR(VLOOKUP(D61,coeff!$F$3:$H$74,2,FALSE))=FALSE,EXP(VLOOKUP(D61,coeff!$F$3:$H$74,2,FALSE)+VLOOKUP(D61,coeff!$F$3:$H$74,3,FALSE)*(LN(1/(1-C61)-1)/0.089))/(1+EXP(VLOOKUP(D61,coeff!$F$3:$H$74,2,FALSE)+VLOOKUP(D61,coeff!$F$3:$H$74,3,FALSE)*(LN(1/(1-C61)-1)/0.089))),(EXP(VLOOKUP(D61+0.5,coeff!$F$3:$H$74,2,FALSE)+VLOOKUP(D61+0.5,coeff!$F$3:$H$74,3,FALSE)*(LN(1/(1-C61)-1)/0.089))/(1+EXP(VLOOKUP(D61+0.5,coeff!$F$3:$H$74,2,FALSE)+VLOOKUP(D61+0.5,coeff!$F$3:$H$74,3,FALSE)*(LN(1/(1-C61)-1)/0.089)))+EXP(VLOOKUP(D61-0.5,coeff!$F$3:$H$74,2,FALSE)+VLOOKUP(D61-0.5,coeff!$F$3:$H$74,3,FALSE)*(LN(1/(1-C61)-1)/0.089))/(1+EXP(VLOOKUP(D61-0.5,coeff!$F$3:$H$74,2,FALSE)+VLOOKUP(D61-0.5,coeff!$F$3:$H$74,3,FALSE)*(LN(1/(1-C61)-1)/0.089))))/2)) ->  | H61: =IF(OR(C61="",D61=""),"",IF(AND((G61*E61-1)>=0.05,K61=1),coeff!$C$5/coeff!$B$5*(G61*E61-1)/(E61-1),0)) ->  | I61: =IF(OR(C61="",D61=""),"",IF(AND((F61*(1-G61)-1)>=0.05,K61=1),coeff!$C$5/coeff!$B$5*(F61*(1-G61)-1)/(F61-1),0)) ->  | K61: 0
D62: 31.5 | E62: 2 | F62: 1.91 | G62: =IF(OR(C62="",D62=""),"",IF(ISERROR(VLOOKUP(D62,coeff!$F$3:$H$74,2,FALSE))=FALSE,EXP(VLOOKUP(D62,coeff!$F$3:$H$74,2,FALSE)+VLOOKUP(D62,coeff!$F$3:$H$74,3,FALSE)*(LN(1/(1-C62)-1)/0.089))/(1+EXP(VLOOKUP(D62,coeff!$F$3:$H$74,2,FALSE)+VLOOKUP(D62,coeff!$F$3:$H$74,3,FALSE)*(LN(1/(1-C62)-1)/0.089))),(EXP(VLOOKUP(D62+0.5,coeff!$F$3:$H$74,2,FALSE)+VLOOKUP(D62+0.5,coeff!$F$3:$H$74,3,FALSE)*(LN(1/(1-C62)-1)/0.089))/(1+EXP(VLOOKUP(D62+0.5,coeff!$F$3:$H$74,2,FALSE)+VLOOKUP(D62+0.5,coeff!$F$3:$H$74,3,FALSE)*(LN(1/(1-C62)-1)/0.089)))+EXP(VLOOKUP(D62-0.5,coeff!$F$3:$H$74,2,FALSE)+VLOOKUP(D62-0.5,coeff!$F$3:$H$74,3,FALSE)*(LN(1/(1-C62)-1)/0.089))/(1+EXP(VLOOKUP(D62-0.5,coeff!$F$3:$H$74,2,FALSE)+VLOOKUP(D62-0.5,coeff!$F$3:$H$74,3,FALSE)*(LN(1/(1-C62)-1)/0.089))))/2)) ->  | H62: =IF(OR(C62="",D62=""),"",IF(AND((G62*E62-1)>=0.05,K62=1),coeff!$C$5/coeff!$B$5*(G62*E62-1)/(E62-1),0)) ->  | I62: =IF(OR(C62="",D62=""),"",IF(AND((F62*(1-G62)-1)>=0.05,K62=1),coeff!$C$5/coeff!$B$5*(F62*(1-G62)-1)/(F62-1),0)) ->  | K62: 0
D63: 31.5 | E63: 2 | F63: 1.91 | G63: =IF(OR(C63="",D63=""),"",IF(ISERROR(VLOOKUP(D63,coeff!$F$3:$H$74,2,FALSE))=FALSE,EXP(VLOOKUP(D63,coeff!$F$3:$H$74,2,FALSE)+VLOOKUP(D63,coeff!$F$3:$H$74,3,FALSE)*(LN(1/(1-C63)-1)/0.089))/(1+EXP(VLOOKUP(D63,coeff!$F$3:$H$74,2,FALSE)+VLOOKUP(D63,coeff!$F$3:$H$74,3,FALSE)*(LN(1/(1-C63)-1)/0.089))),(EXP(VLOOKUP(D63+0.5,coeff!$F$3:$H$74,2,FALSE)+VLOOKUP(D63+0.5,coeff!$F$3:$H$74,3,FALSE)*(LN(1/(1-C63)-1)/0.089))/(1+EXP(VLOOKUP(D63+0.5,coeff!$F$3:$H$74,2,FALSE)+VLOOKUP(D63+0.5,coeff!$F$3:$H$74,3,FALSE)*(LN(1/(1-C63)-1)/0.089)))+EXP(VLOOKUP(D63-0.5,coeff!$F$3:$H$74,2,FALSE)+VLOOKUP(D63-0.5,coeff!$F$3:$H$74,3,FALSE)*(LN(1/(1-C63)-1)/0.089))/(1+EXP(VLOOKUP(D63-0.5,coeff!$F$3:$H$74,2,FALSE)+VLOOKUP(D63-0.5,coeff!$F$3:$H$74,3,FALSE)*(LN(1/(1-C63)-1)/0.089))))/2)) ->  | H63: =IF(OR(C63="",D63=""),"",IF(AND((G63*E63-1)>=0.05,K63=1),coeff!$C$5/coeff!$B$5*(G63*E63-1)/(E63-1),0)) ->  | I63: =IF(OR(C63="",D63=""),"",IF(AND((F63*(1-G63)-1)>=0.05,K63=1),coeff!$C$5/coeff!$B$5*(F63*(1-G63)-1)/(F63-1),0)) ->  | K63: 0
D64: 31.5 | E64: 2 | F64: 1.91 | G64: =IF(OR(C64="",D64=""),"",IF(ISERROR(VLOOKUP(D64,coeff!$F$3:$H$74,2,FALSE))=FALSE,EXP(VLOOKUP(D64,coeff!$F$3:$H$74,2,FALSE)+VLOOKUP(D64,coeff!$F$3:$H$74,3,FALSE)*(LN(1/(1-C64)-1)/0.089))/(1+EXP(VLOOKUP(D64,coeff!$F$3:$H$74,2,FALSE)+VLOOKUP(D64,coeff!$F$3:$H$74,3,FALSE)*(LN(1/(1-C64)-1)/0.089))),(EXP(VLOOKUP(D64+0.5,coeff!$F$3:$H$74,2,FALSE)+VLOOKUP(D64+0.5,coeff!$F$3:$H$74,3,FALSE)*(LN(1/(1-C64)-1)/0.089))/(1+EXP(VLOOKUP(D64+0.5,coeff!$F$3:$H$74,2,FALSE)+VLOOKUP(D64+0.5,coeff!$F$3:$H$74,3,FALSE)*(LN(1/(1-C64)-1)/0.089)))+EXP(VLOOKUP(D64-0.5,coeff!$F$3:$H$74,2,FALSE)+VLOOKUP(D64-0.5,coeff!$F$3:$H$74,3,FALSE)*(LN(1/(1-C64)-1)/0.089))/(1+EXP(VLOOKUP(D64-0.5,coeff!$F$3:$H$74,2,FALSE)+VLOOKUP(D64-0.5,coeff!$F$3:$H$74,3,FALSE)*(LN(1/(1-C64)-1)/0.089))))/2)) ->  | H64: =IF(OR(C64="",D64=""),"",IF(AND((G64*E64-1)>=0.05,K64=1),coeff!$C$5/coeff!$B$5*(G64*E64-1)/(E64-1),0)) ->  | I64: =IF(OR(C64="",D64=""),"",IF(AND((F64*(1-G64)-1)>=0.05,K64=1),coeff!$C$5/coeff!$B$5*(F64*(1-G64)-1)/(F64-1),0)) ->  | K64: 0

Sheet totals
A3: Team1 | B3: Team2 | C3: TotalLine | D3: OddsOver | E3: OddsUnder | F3: ProbOver | G3: $BetOver | H3: $BetUnder | I3: Overlay
A4: Penrith | B4: Canterbury | C4: 4.5 | D4: 1.77 | E4: 2.11 | F4: =IF(C4="","",IF(ISERROR(VLOOKUP(C4,coeff!$F$3:$H$74,2,FALSE))=FALSE,EXP(VLOOKUP(C4,coeff!$F$3:$H$74,2,FALSE)+VLOOKUP(C4,coeff!$F$3:$H$74,3,FALSE)*(LN(1/(1-#REF!)-1)/0.089))/(1+EXP(VLOOKUP(C4,coeff!$F$3:$H$74,2,FALSE)+VLOOKUP(C4,coeff!$F$3:$H$74,3,FALSE)*(LN(1/(1-#REF!)-1)/0.089))),(EXP(VLOOKUP(C4+0.5,coeff!$F$3:$H$74,2,FALSE)+VLOOKUP(C4+0.5,coeff!$F$3:$H$74,3,FALSE)*(LN(1/(1-#REF!)-1)/0.089))/(1+EXP(VLOOKUP(C4+0.5,coeff!$F$3:$H$74,2,FALSE)+VLOOKUP(C4+0.5,coeff!$F$3:$H$74,3,FALSE)*(LN(1/(1-#REF!)-1)/0.089)))+EXP(VLOOKUP(C4-0.5,coeff!$F$3:$H$74,2,FALSE)+VLOOKUP(C4-0.5,coeff!$F$3:$H$74,3,FALSE)*(LN(1/(1-#REF!)-1)/0.089))/(1+EXP(VLOOKUP(C4-0.5,coeff!$F$3:$H$74,2,FALSE)+VLOOKUP(C4-0.5,coeff!$F$3:$H$74,3,FALSE)*(LN(1/(1-#REF!)-1)/0.089))))/2)) ->  | G4: =IF(C4="","",IF((F4*D4-1)>=0.05,coeff!$C$5/coeff!$B$5*(F4*D4-1)/(D4-1),0)) ->  | H4: =IF(C4="","",IF((E4*(1-F4)-1)>=0.05,coeff!$C$5/coeff!$B$5*(E4*(1-F4)-1)/(E4-1),0)) ->  | I4: =IF(#REF!="","",IF(G4>0,D4*F4-1,IF(H4>0,E4*(1-F4)-1,""))) -> 
A5: Brisbane | B5: New Zealand | C5: -9.5 | D5: 1.93 | E5: 1.93 | F5: =IF(C5="","",IF(ISERROR(VLOOKUP(C5,coeff!$F$3:$H$74,2,FALSE))=FALSE,EXP(VLOOKUP(C5,coeff!$F$3:$H$74,2,FALSE)+VLOOKUP(C5,coeff!$F$3:$H$74,3,FALSE)*(LN(1/(1-#REF!)-1)/0.089))/(1+EXP(VLOOKUP(C5,coeff!$F$3:$H$74,2,FALSE)+VLOOKUP(C5,coeff!$F$3:$H$74,3,FALSE)*(LN(1/(1-#REF!)-1)/0.089))),(EXP(VLOOKUP(C5+0.5,coeff!$F$3:$H$74,2,FALSE)+VLOOKUP(C5+0.5,coeff!$F$3:$H$74,3,FALSE)*(LN(1/(1-#REF!)-1)/0.089))/(1+EXP(VLOOKUP(C5+0.5,coeff!$F$3:$H$74,2,FALSE)+VLOOKUP(C5+0.5,coeff!$F$3:$H$74,3,FALSE)*(LN(1/(1-#REF!)-1)/0.089)))+EXP(VLOOKUP(C5-0.5,coeff!$F$3:$H$74,2,FALSE)+VLOOKUP(C5-0.5,coeff!$F$3:$H$74,3,FALSE)*(LN(1/(1-#REF!)-1)/0.089))/(1+EXP(VLOOKUP(C5-0.5,coeff!$F$3:$H$74,2,FALSE)+VLOOKUP(C5-0.5,coeff!$F$3:$H$74,3,FALSE)*(LN(1/(1-#REF!)-1)/0.089))))/2)) ->  | G5: =IF(C5="","",IF((F5*D5-1)>=0.05,coeff!$C$5/coeff!$B$5*(F5*D5-1)/(D5-1),0)) ->  | H5: =IF(C5="","",IF((E5*(1-F5)-1)>=0.05,coeff!$C$5/coeff!$B$5*(E5*(1-F5)-1)/(E5-1),0)) ->  | I5: =IF(#REF!="","",IF(G5>0,D5*F5-1,IF(H5>0,E5*(1-F5)-1,""))) -> 

Sheet futures
A1: Sportpunter's NRL Betting Predictions as at 10/03/2016
A3: Team | B3: P(Prem) | C3: P(Finals) | D3: P(Spoon)
A4: South Sydney Rabbitohs | B4: 0.118 | C4: 0.741 | D4: 0.013
A5: Canterbury Bulldogs | B5: 0.091 | C5: 0.667 | D5: 0.015
A6: Gold Coast Titans | B6: 0.021 | C6: 0.357 | D6: 0.091
A7: Brisbane Broncos | B7: 0.149 | C7: 0.794 | D7: 0.002
A8: Canberra Raiders | B8: 0.038 | C8: 0.476 | D8: 0.05
A9: Wests Tigers | B9: 0.028 | C9: 0.37 | D9: 0.069
A10: North Queensland Cowboys | B10: 0.141 | C10: 0.781 | D10: 0.006
A11: Melbourne Storm | B11: 0.095 | C11: 0.714 | D11: 0.015
A12: St. George Illawarra Dragons | B12: 0.042 | C12: 0.417 | D12: 0.08
A13: Cronulla Sharks | B13: 0.036 | C13: 0.385 | D13: 0.074
A14: New Zealand Warriors | B14: 0.015 | C14: 0.303 | D14: 0.123
A15: Penrith Panthers | B15: 0.026 | C15: 0.37 | D15: 0.091
A16: Parramatta Eels | B16: 0.013 | C16: 0.238 | D16: 0.161
A17: Newcastle Knights | B17: 0.022 | C17: 0.244 | D17: 0.159
A18: Manly Sea Eagles | B18: 0.042 | C18: 0.476 | D18: 0.036
A19: Sydney Roosters | B19: 0.12 | C19: 0.667 | D19: 0.015

Sheet Sheet1
A1: Sportpunter's NRL Suggested Bets as at 27/03/2015
A3: Team1 | B3: Team2 | C3: Venue | D3: Prob | E3: Odds1 | F3: Odds2 | G3: Overlay1 | H3: Overlay2 | I3: Bet1 | J3: Bet2 | K3: Result | L3: Profit/Loss
A4: Parramatta | B4: South Sydney | C4: Pirtek Stadium | D4: 0.237 | E4: 3.59 | F4: 1.34 | G4: 0 | H4: 0.02 | I4: $ - | J4: $ -
A5: Wests | B5: Canterbury | C5: ANZ Stadium | D5: 0.202 | E5: 3.52 | F5: 1.35 | G5: 0 | H5: 0.08 | I5: $ - | J5: 220.66
A6: Newcastle | B6: Penrith | C6: Hunter Stadium | D6: 0.386 | E6: 2.1 | F6: 1.83 | G6: 0 | H6: 0.12 | I6: $ - | J6: 148.65
A7: Cronulla | B7: Gold Coast | C7: Remondis Stadium | D7: 0.876 | E7: 1.46 | F7: 2.93 | G7: 0.28 | H7: 0 | I7: 607.78 | J7: $ -
A8: St. George Illawarra | B8: Manly | C8: WIN Jubilee | D8: 0.369 | E8: 2.47 | F8: 1.61 | G8: 0 | H8: 0.02 | I8: $ - | J8: $ -
A9: New Zealand | B9: Brisbane | C9: Mt. Smart Stadium | D9: 0.487 | E9: 1.75 | F9: 2.2 | G9: 0 | H9: 0.13 | I9: $ - | J9: 106.32
A10: Sydney | B10: Canberra | C10: Allianz Stadium | D10: 0.823 | E10: 1.17 | F10: 5.98 | G10: 0 | H10: 0.06 | I10: $ - | J10: 11.68
A11: North Queensland | B11: Melbourne | C11: 1300SMILES Stadium | D11: 0.502 | E11: 1.88 | F11: 2.03 | G11: 0 | H11: 0.01 | I11: $ - | J11: $ -
J12: 1095.09 | L12: $ -

Sheet Sheet4
A1: h2hbets_2: Failed ...
D8: h2hbets: Failed ...

Sheet Sheet3
A1: h2hbets: Failed ...
